{"text_format":"3","workbook":"xlsx","n_sheets":6,"sheets":["Informations","TDB_ETAB","TDB_CLASSES_FRA","TDB_CLASSES_MATH","EVA6_FRANCAIS","EVA6_MATHS"],"not_rendered":{"charts":39,"macros":1,"defined_names":5},"read":"whole","date_system":"1900"}

{"sheet":"Informations","index":0,"n_rows":43,"n_cols":6,"rows_kept":43}
["Informations du collège :",null,{"$f":"LEFT(EVA6_MATHS!C2,11)","v":""}]
[]
["1) Répartition des élèves évalués par classe"]
[]
["Classes *","Effectifs\nfrançais","%\nfrançais","Effectifs\nmaths","%\nmaths"]
[null,{"$f":"COUNTIF(EVA6_FRANCAIS!A:A,$A6)","v":0},{"$f":"B6/B$19","v":{"$error":"#DIV/0!"}},{"$f":"COUNTIF(EVA6_MATHS!A:A,$A6)","v":0},{"$f":"D6/D$19","v":{"$error":"#DIV/0!"}}]
[null,{"$f":"COUNTIF(EVA6_FRANCAIS!A:A,$A7)","v":0},{"$error":"#DIV/0!"},{"$f":"COUNTIF(EVA6_MATHS!A:A,$A7)","v":0},{"$error":"#DIV/0!"}]
[null,{"$f":"COUNTIF(EVA6_FRANCAIS!A:A,$A8)","v":0},{"$error":"#DIV/0!"},{"$f":"COUNTIF(EVA6_MATHS!A:A,$A8)","v":0},{"$error":"#DIV/0!"}]
[null,{"$f":"COUNTIF(EVA6_FRANCAIS!A:A,$A9)","v":0},{"$error":"#DIV/0!"},{"$f":"COUNTIF(EVA6_MATHS!A:A,$A9)","v":0},{"$error":"#DIV/0!"}]
[null,{"$f":"COUNTIF(EVA6_FRANCAIS!A:A,$A10)","v":0},{"$error":"#DIV/0!"},{"$f":"COUNTIF(EVA6_MATHS!A:A,$A10)","v":0},{"$error":"#DIV/0!"}]
[null,{"$f":"COUNTIF(EVA6_FRANCAIS!A:A,$A11)","v":0},{"$error":"#DIV/0!"},{"$f":"COUNTIF(EVA6_MATHS!A:A,$A11)","v":0},{"$error":"#DIV/0!"}]
[null,{"$f":"COUNTIF(EVA6_FRANCAIS!A:A,$A12)","v":0},{"$error":"#DIV/0!"},{"$f":"COUNTIF(EVA6_MATHS!A:A,$A12)","v":0},{"$error":"#DIV/0!"}]
[null,{"$f":"COUNTIF(EVA6_FRANCAIS!A:A,$A13)","v":0},{"$error":"#DIV/0!"},{"$f":"COUNTIF(EVA6_MATHS!A:A,$A13)","v":0},{"$error":"#DIV/0!"}]
[null,{"$f":"COUNTIF(EVA6_FRANCAIS!A:A,$A14)","v":0},{"$error":"#DIV/0!"},{"$f":"COUNTIF(EVA6_MATHS!A:A,$A14)","v":0},{"$error":"#DIV/0!"}]
[null,{"$f":"COUNTIF(EVA6_FRANCAIS!A:A,$A15)","v":0},{"$error":"#DIV/0!"},{"$f":"COUNTIF(EVA6_MATHS!A:A,$A15)","v":0},{"$error":"#DIV/0!"}]
[null,{"$f":"COUNTIF(EVA6_FRANCAIS!A:A,$A16)","v":0},{"$error":"#DIV/0!"},{"$f":"COUNTIF(EVA6_MATHS!A:A,$A16)","v":0},{"$error":"#DIV/0!"}]
[null,{"$f":"COUNTIF(EVA6_FRANCAIS!A:A,$A17)","v":0},{"$error":"#DIV/0!"},{"$f":"COUNTIF(EVA6_MATHS!A:A,$A17)","v":0},{"$error":"#DIV/0!"}]
[null,{"$f":"COUNTIF(EVA6_FRANCAIS!A:A,$A18)","v":0},{"$error":"#DIV/0!"},{"$f":"COUNTIF(EVA6_MATHS!A:A,$A18)","v":0},{"$error":"#DIV/0!"}]
["Total collège",{"$f":"SUM(B6:B18)","v":0},{"$error":"#DIV/0!"},{"$f":"SUM(D6:D18)","v":0},{"$error":"#DIV/0!"}]
["* noms des classes à compléter comme suit :"]
["     - saisir à l'identique les noms de classes utilisés par ASP (vous pouvez les retrouver dans l'onglet \"EVA6_FRANCAIS\")"]
["     - ne pas modifier les lignes non utilisées"]
[]
[]
["2) Résultats par classe exprimés en effectifs d'élèves selon les niveaux de maîtrise suivants :"]
[]
["à besoins"]
["fragile"]
["satisfaisant"]
[]
[]
[]
[]
["Résultats par classe exprimés en pourcentages mis en forme en fonction des résultats des élèves comparés à ceux de l'établissement :"]
[]
["- Pour les niveaux de maîtrise à besoins et fragile :"]
[null,"En rouge ","les taux de ",{"$f":"E42","v":5},"% supérieur à ceux de l'ensemble de l'établissement"]
[null,"En vert","les taux de ",{"$f":"E42","v":5},"% inférieur à ceux de l'ensemble de l'établissement "]
["- Pour les niveaux de maîtrise satisfaisante, à l'inverse :"]
[null,"En rouge ","les taux de ",{"$f":"E42","v":5},"% inférieur à ceux de l'ensemble de l'établissement"]
[null,"En vert","les taux de ",{"$f":"E42","v":5},"%supérieur à ceux de l'ensemble de l'établissement "]
["Ecart** de taux pour la mise en forme conditionnelle :",{"$nulls":3},5,"%"]
["** Par défaut, l'écart de taux est de 5%. Vous pouvez le modifier en saisissant celui qui vous convient dans la cellule colorée ci-dessus. "]

{"sheet":"TDB_ETAB","index":1,"n_rows":34,"n_cols":7,"rows_kept":34}
["Tableau de bord du collège :",null,"0070010Y"]
[]
["Français","Répartition des effectifs d'élèves pour chaque compétence"]
[]
["Niveau de maîtrise","Compréhension de l'oral\nComprendre un message oral","Test spécifique de compréhension de l'écrit\nComprendre un texte","Étude de la langue\nSe repérer dans une phrase et identifier sa composition","Étude de la langue\nMaîtriser l'orthographe","Test spécifique en étude de la langue - lexique\nComprendre et mobiliser le lexique","Fluence"]
["Nb \"à besoins\"",{"$f":"COUNTIF(EVA6_FRANCAIS!D:D,\"à besoins\")","v":0},{"$f":"COUNTIF(EVA6_FRANCAIS!E:E,\"à besoins\")","v":0},{"$f":"COUNTIF(EVA6_FRANCAIS!F:F,\"à besoins\")","v":0},{"$f":"COUNTIF(EVA6_FRANCAIS!G:G,\"à besoins\")","v":0},{"$f":"COUNTIF(EVA6_FRANCAIS!H:H,\"à besoins\")","v":0},{"$f":"COUNTIF(EVA6_FRANCAIS!I:I,\"à besoins\")","v":0}]
["Nb \"fragile\"",{"$f":"COUNTIF(EVA6_FRANCAIS!D:D,\"fragile\")","v":0},{"$f":"COUNTIF(EVA6_FRANCAIS!E:E,\"fragile\")","v":0},{"$f":"COUNTIF(EVA6_FRANCAIS!F:F,\"fragile\")","v":0},{"$f":"COUNTIF(EVA6_FRANCAIS!G:G,\"fragile\")","v":0},{"$f":"COUNTIF(EVA6_FRANCAIS!H:H,\"fragile\")","v":0},{"$f":"COUNTIF(EVA6_FRANCAIS!I:I,\"fragile\")","v":0}]
["Nb \"satisfaisant\"",{"$f":"COUNTIF(EVA6_FRANCAIS!D:D,\"satisfaisant\")","v":0},{"$f":"COUNTIF(EVA6_FRANCAIS!E:E,\"satisfaisant\")","v":0},{"$f":"COUNTIF(EVA6_FRANCAIS!F:F,\"satisfaisant\")","v":0},{"$f":"COUNTIF(EVA6_FRANCAIS!G:G,\"satisfaisant\")","v":0},{"$f":"COUNTIF(EVA6_FRANCAIS!H:H,\"satisfaisant\")","v":0},{"$f":"COUNTIF(EVA6_FRANCAIS!I:I,\"satisfaisant\")","v":0}]
["Total élèves évalués ",{"$f":"SUM(B6:B8)","v":0},{"$f":"SUM(C6:C8)","v":0},0,0,0,{"$f":"SUM(G6:G8)","v":0}]
[]
[null,"Répartition des proportions d'élèves pour chaque compétence"]
[]
["Niveau de maîtrise","Compréhension de l'oral\nComprendre un message oral","Test spécifique de compréhension de l'écrit\nComprendre un texte","Étude de la langue\nSe repérer dans une phrase et identifier sa composition","Étude de la langue\nMaîtriser l'orthographe","Test spécifique en étude de la langue - lexique\nComprendre et mobiliser le lexique","Fluence"]
["Taux \"à besoins\"",{"$f":"B6/B$9","v":{"$error":"#DIV/0!"}},{"$f":"C6/C$9","v":{"$error":"#DIV/0!"}},{"$error":"#DIV/0!"},{"$error":"#DIV/0!"},{"$error":"#DIV/0!"},{"$f":"G6/G$9","v":{"$error":"#DIV/0!"}}]
["Taux \"fragile\"",{"$f":"B7/B$9","v":{"$error":"#DIV/0!"}},{"$f":"C7/C$9","v":{"$error":"#DIV/0!"}},{"$error":"#DIV/0!"},{"$error":"#DIV/0!"},{"$error":"#DIV/0!"},{"$f":"G7/G$9","v":{"$error":"#DIV/0!"}}]
["Taux \"satisfaisant\"",{"$f":"B8/B$9","v":{"$error":"#DIV/0!"}},{"$f":"C8/C$9","v":{"$error":"#DIV/0!"}},{"$f":"D8/D$9","v":{"$error":"#DIV/0!"}},{"$error":"#DIV/0!"},{"$error":"#DIV/0!"},{"$f":"G8/G$9","v":{"$error":"#DIV/0!"}}]
["Total élèves évalués ",{"$f":"B9/B$9","v":{"$error":"#DIV/0!"}},{"$f":"C9/C$9","v":{"$error":"#DIV/0!"}},{"$f":"D9/D$9","v":{"$error":"#DIV/0!"}},{"$error":"#DIV/0!"},{"$error":"#DIV/0!"},{"$f":"G9/G$9","v":{"$error":"#DIV/0!"}}]
[]
[]
["Mathématiques","Répartition des effectifs d'élèves"]
[]
["Niveau de maîtrise","Test spécifique en automatismes\nMobiliser directement des procédures et des connaissances","Test spécifique en résolution de problèmes\nRésoudre des problèmes en utilisant des nombres et des grandeurs","Espace et géométrie\nConnaître et utiliser des notions de géométrie","Grandeurs et mesures\nConnaître des grandeurs et utiliser des unités de mesure","Nombres et calculs\nConnaître les nombres et les utiliser dans des calculs"]
["Nb \"à besoins\"",{"$f":"COUNTIF(EVA6_MATHS!D:D,\"à besoins\")","v":0},{"$f":"COUNTIF(EVA6_MATHS!E:E,\"à besoins\")","v":0},{"$f":"COUNTIF(EVA6_MATHS!F:F,\"à besoins\")","v":0},{"$f":"COUNTIF(EVA6_MATHS!G:G,\"à besoins\")","v":0},{"$f":"COUNTIF(EVA6_MATHS!H:H,\"à besoins\")","v":0}]
["Nb \"fragile\"",{"$f":"COUNTIF(EVA6_MATHS!D:D,\"fragile\")","v":0},{"$f":"COUNTIF(EVA6_MATHS!E:E,\"fragile\")","v":0},{"$f":"COUNTIF(EVA6_MATHS!F:F,\"fragile\")","v":0},{"$f":"COUNTIF(EVA6_MATHS!G:G,\"fragile\")","v":0},{"$f":"COUNTIF(EVA6_MATHS!H:H,\"fragile\")","v":0}]
["Nb \"satisfaisant\"",{"$f":"COUNTIF(EVA6_MATHS!D:D,\"satisfaisant\")","v":0},{"$f":"COUNTIF(EVA6_MATHS!E:E,\"satisfaisant\")","v":0},{"$f":"COUNTIF(EVA6_MATHS!F:F,\"satisfaisant\")","v":0},{"$f":"COUNTIF(EVA6_MATHS!G:G,\"satisfaisant\")","v":0},{"$f":"COUNTIF(EVA6_MATHS!H:H,\"satisfaisant\")","v":0}]
["Total élèves évalués ",{"$f":"SUM(B23:B25)","v":0},{"$f":"SUM(C23:C25)","v":0},0,0,0]
[]
[null,"Répartition des proportions d'élèves"]
[]
["Niveau de maîtrise","Test spécifique en automatismes\nMobiliser directement des procédures et des connaissances","Test spécifique en résolution de problèmes\nRésoudre des problèmes en utilisant des nombres et des grandeurs","Espaces et géométrie\nConnaître et utiliser des notions de géométrie","Grandeurs et mesures\nConnaître des grandeurs et utiliser des unités de mesure","Nombres et calculs\nConnaître les nombres et les utiliser dans des calculs"]
["Taux \"à besoins\"",{"$f":"B23/B$26","v":{"$error":"#DIV/0!"}},{"$f":"C23/C$26","v":{"$error":"#DIV/0!"}},{"$error":"#DIV/0!"},{"$error":"#DIV/0!"},{"$error":"#DIV/0!"}]
["Taux \"fragile\"",{"$f":"B24/B$26","v":{"$error":"#DIV/0!"}},{"$f":"C24/C$26","v":{"$error":"#DIV/0!"}},{"$error":"#DIV/0!"},{"$error":"#DIV/0!"},{"$error":"#DIV/0!"}]
["Taux \"satisfaisant\"",{"$f":"B25/B$26","v":{"$error":"#DIV/0!"}},{"$f":"C25/C$26","v":{"$error":"#DIV/0!"}},{"$error":"#DIV/0!"},{"$error":"#DIV/0!"},{"$error":"#DIV/0!"}]
["Total élèves évalués ",{"$f":"B26/B$26","v":{"$error":"#DIV/0!"}},{"$f":"C26/C$26","v":{"$error":"#DIV/0!"}},{"$error":"#DIV/0!"},{"$error":"#DIV/0!"},{"$error":"#DIV/0!"}]

{"sheet":"TDB_CLASSES_FRA","index":2,"n_rows":178,"n_cols":7,"rows_kept":178}
["Tableau de bord du collège :",{"$f":"RIGHT(C1,8)","v":"0"},{"$f":"TDB_ETAB!B1","v":0},null,{"v":0,"d":"0.0%"}]
[]
["Français","Répartition des proportions d'élèves pour chaque compétence (Rappel TDB_ETAB)"]
[null,"Compréhension de l'oral"]
["Référence : Collège","Compréhension de l'oral\nComprendre un message oral","Test spécifique de compréhension de l'écrit\nComprendre un texte","Étude de la langue\nSe repérer dans une phrase et identifier sa composition","Étude de la langue\nMaîtriser l'orthographe","Test spécifique en étude de la langue - lexique\nComprendre et mobiliser le lexique","Fluence"]
["Taux \"à besoins\"",{"$f":"TDB_ETAB!B14","v":{"$error":"#DIV/0!"}},{"$f":"TDB_ETAB!C14","v":{"$error":"#DIV/0!"}},{"$f":"TDB_ETAB!D14","v":{"$error":"#DIV/0!"}},{"$f":"TDB_ETAB!E14","v":{"$error":"#DIV/0!"}},{"$f":"TDB_ETAB!F14","v":{"$error":"#DIV/0!"}},{"$f":"TDB_ETAB!G14","v":{"$error":"#DIV/0!"}}]
["Taux \"fragile\"",{"$f":"TDB_ETAB!B15","v":{"$error":"#DIV/0!"}},{"$f":"TDB_ETAB!C15","v":{"$error":"#DIV/0!"}},{"$f":"TDB_ETAB!D15","v":{"$error":"#DIV/0!"}},{"$f":"TDB_ETAB!E15","v":{"$error":"#DIV/0!"}},{"$f":"TDB_ETAB!F15","v":{"$error":"#DIV/0!"}},{"$f":"TDB_ETAB!G15","v":{"$error":"#DIV/0!"}}]
["Taux \"satisfaisant\"",{"$f":"TDB_ETAB!B16","v":{"$error":"#DIV/0!"}},{"$f":"TDB_ETAB!C16","v":{"$error":"#DIV/0!"}},{"$f":"TDB_ETAB!D16","v":{"$error":"#DIV/0!"}},{"$f":"TDB_ETAB!E16","v":{"$error":"#DIV/0!"}},{"$f":"TDB_ETAB!F16","v":{"$error":"#DIV/0!"}},{"$f":"TDB_ETAB!G16","v":{"$error":"#DIV/0!"}}]
["Total élèves évalués ",{"$f":"TDB_ETAB!B17","v":{"$error":"#DIV/0!"}},{"$f":"TDB_ETAB!C17","v":{"$error":"#DIV/0!"}},{"$f":"TDB_ETAB!D17","v":{"$error":"#DIV/0!"}},{"$f":"TDB_ETAB!E17","v":{"$error":"#DIV/0!"}},{"$f":"TDB_ETAB!F17","v":{"$error":"#DIV/0!"}},{"$f":"TDB_ETAB!G17","v":{"$error":"#DIV/0!"}}]
[]
[]
[{"$f":"CONCATENATE(\"Classe : \",Informations!$A$6)","v":"Classe : "},"Compréhension de l'oral\nComprendre un message oral","Test spécifique de compréhension de l'écrit\nComprendre un texte","Étude de la langue\nSe repérer dans une phrase et identifier sa composition","Étude de la langue\nMaîtriser l'orthographe","Test spécifique en étude de la langue - lexique\nComprendre et mobiliser le lexique","Fluence"]
["Nb \"à besoins\"",{"$f":"COUNTIF(EVA6_FRANCAIS!J:J,CONCATENATE(Informations!$A$6,\" \",Informations!$A$27))","v":0},{"$f":"COUNTIF(EVA6_FRANCAIS!K:K,CONCATENATE(Informations!$A$6,\" \",Informations!$A$27))","v":0},{"$f":"COUNTIF(EVA6_FRANCAIS!L:L,CONCATENATE(Informations!$A$6,\" \",Informations!$A$27))","v":0},{"$f":"COUNTIF(EVA6_FRANCAIS!M:M,CONCATENATE(Informations!$A$6,\" \",Informations!$A$27))","v":0},{"$f":"COUNTIF(EVA6_FRANCAIS!N:N,CONCATENATE(Informations!$A$6,\" \",Informations!$A$27))","v":0},{"$f":"COUNTIF(EVA6_FRANCAIS!O:O,CONCATENATE(Informations!$A$6,\" \",Informations!$A$27))","v":0}]
["Nb \"fragile\"",{"$f":"COUNTIF(EVA6_FRANCAIS!J:J,CONCATENATE(Informations!$A$6,\" \",Informations!$A$28))","v":0},{"$f":"COUNTIF(EVA6_FRANCAIS!K:K,CONCATENATE(Informations!$A$6,\" \",Informations!$A$28))","v":0},{"$f":"COUNTIF(EVA6_FRANCAIS!L:L,CONCATENATE(Informations!$A$6,\" \",Informations!$A$28))","v":0},{"$f":"COUNTIF(EVA6_FRANCAIS!M:M,CONCATENATE(Informations!$A$6,\" \",Informations!$A$28))","v":0},{"$f":"COUNTIF(EVA6_FRANCAIS!N:N,CONCATENATE(Informations!$A$6,\" \",Informations!$A$28))","v":0},{"$f":"COUNTIF(EVA6_FRANCAIS!O:O,CONCATENATE(Informations!$A$6,\" \",Informations!$A$28))","v":0}]
["Nb \"satisfaisant\"",{"$f":"COUNTIF(EVA6_FRANCAIS!J:J,CONCATENATE(Informations!$A$6,\" \",Informations!$A$29))","v":0},{"$f":"COUNTIF(EVA6_FRANCAIS!K:K,CONCATENATE(Informations!$A$6,\" \",Informations!$A$29))","v":0},{"$f":"COUNTIF(EVA6_FRANCAIS!L:L,CONCATENATE(Informations!$A$6,\" \",Informations!$A$29))","v":0},{"$f":"COUNTIF(EVA6_FRANCAIS!M:M,CONCATENATE(Informations!$A$6,\" \",Informations!$A$29))","v":0},{"$f":"COUNTIF(EVA6_FRANCAIS!N:N,CONCATENATE(Informations!$A$6,\" \",Informations!$A$29))","v":0},{"$f":"COUNTIF(EVA6_FRANCAIS!O:O,CONCATENATE(Informations!$A$6,\" \",Informations!$A$29))","v":0}]
["Total élèves évalués ",{"$f":"SUM(B13:B15)","v":0},{"$f":"SUM(C13:C15)","v":0},0,0,0,{"$f":"SUM(G13:G15)","v":0}]
[]
[{"$f":"CONCATENATE(\"Classe : \",Informations!$A$6)","v":"Classe : "},"Compréhension de l'oral\nComprendre un message oral","Test spécifique de compréhension de l'écrit\nComprendre un texte","Étude de la langue\nSe repérer dans une phrase et identifier sa composition","Étude de la langue\nMaîtriser l'orthographe","Test spécifique en étude de la langue - lexique\nComprendre et mobiliser le lexique","Fluence"]
["Taux \"à besoins\"",{"$f":"B13/B$16","v":{"$error":"#DIV/0!"}},{"$f":"C13/C$16","v":{"$error":"#DIV/0!"}},{"$error":"#DIV/0!"},{"$error":"#DIV/0!"},{"$error":"#DIV/0!"},{"$f":"G13/G$16","v":{"$error":"#DIV/0!"}}]
["Taux \"fragile\"",{"$f":"B14/B$16","v":{"$error":"#DIV/0!"}},{"$f":"C14/C$16","v":{"$error":"#DIV/0!"}},{"$error":"#DIV/0!"},{"$error":"#DIV/0!"},{"$error":"#DIV/0!"},{"$f":"G14/G$16","v":{"$error":"#DIV/0!"}}]
["Taux \"satisfaisant\"",{"$f":"B15/B$16","v":{"$error":"#DIV/0!"}},{"$f":"C15/C$16","v":{"$error":"#DIV/0!"}},{"$error":"#DIV/0!"},{"$error":"#DIV/0!"},{"$error":"#DIV/0!"},{"$f":"G15/G$16","v":{"$error":"#DIV/0!"}}]
["Total élèves évalués ",{"$f":"B16/B$16","v":{"$error":"#DIV/0!"}},{"$f":"C16/C$16","v":{"$error":"#DIV/0!"}},{"$error":"#DIV/0!"},{"$error":"#DIV/0!"},{"$error":"#DIV/0!"},{"$f":"G16/G$16","v":{"$error":"#DIV/0!"}}]
[]
[]
[{"$f":"CONCATENATE(\"Classe : \",Informations!$A$7)","v":"Classe : "},"Compréhension de l'oral\nComprendre un message oral","Test spécifique de compréhension de l'écrit\nComprendre un texte","Étude de la langue\nSe repérer dans une phrase et identifier sa composition","Étude de la langue\nMaîtriser l'orthographe","Test spécifique en étude de la langue - lexique\nComprendre et mobiliser le lexique","Fluence"]
["Nb \"à besoins\"",{"$f":"COUNTIF(EVA6_FRANCAIS!J:J,CONCATENATE(Informations!$A$7,\" \",Informations!$A$27))","v":0},{"$f":"COUNTIF(EVA6_FRANCAIS!K:K,CONCATENATE(Informations!$A$7,\" \",Informations!$A$27))","v":0},{"$f":"COUNTIF(EVA6_FRANCAIS!L:L,CONCATENATE(Informations!$A$7,\" \",Informations!$A$27))","v":0},{"$f":"COUNTIF(EVA6_FRANCAIS!M:M,CONCATENATE(Informations!$A$7,\" \",Informations!$A$27))","v":0},{"$f":"COUNTIF(EVA6_FRANCAIS!N:N,CONCATENATE(Informations!$A$7,\" \",Informations!$A$27))","v":0},{"$f":"COUNTIF(EVA6_FRANCAIS!O:O,CONCATENATE(Informations!$A$7,\" \",Informations!$A$27))","v":0}]
["Nb \"fragile\"",{"$f":"COUNTIF(EVA6_FRANCAIS!J:J,CONCATENATE(Informations!$A$7,\" \",Informations!$A$28))","v":0},{"$f":"COUNTIF(EVA6_FRANCAIS!K:K,CONCATENATE(Informations!$A$7,\" \",Informations!$A$28))","v":0},{"$f":"COUNTIF(EVA6_FRANCAIS!L:L,CONCATENATE(Informations!$A$7,\" \",Informations!$A$28))","v":0},{"$f":"COUNTIF(EVA6_FRANCAIS!M:M,CONCATENATE(Informations!$A$7,\" \",Informations!$A$28))","v":0},{"$f":"COUNTIF(EVA6_FRANCAIS!N:N,CONCATENATE(Informations!$A$7,\" \",Informations!$A$28))","v":0},{"$f":"COUNTIF(EVA6_FRANCAIS!O:O,CONCATENATE(Informations!$A$7,\" \",Informations!$A$28))","v":0}]
["Nb \"satisfaisant\"",{"$f":"COUNTIF(EVA6_FRANCAIS!J:J,CONCATENATE(Informations!$A$7,\" \",Informations!$A$29))","v":0},{"$f":"COUNTIF(EVA6_FRANCAIS!K:K,CONCATENATE(Informations!$A$7,\" \",Informations!$A$29))","v":0},{"$f":"COUNTIF(EVA6_FRANCAIS!L:L,CONCATENATE(Informations!$A$7,\" \",Informations!$A$29))","v":0},{"$f":"COUNTIF(EVA6_FRANCAIS!M:M,CONCATENATE(Informations!$A$7,\" \",Informations!$A$29))","v":0},{"$f":"COUNTIF(EVA6_FRANCAIS!N:N,CONCATENATE(Informations!$A$7,\" \",Informations!$A$29))","v":0},{"$f":"COUNTIF(EVA6_FRANCAIS!O:O,CONCATENATE(Informations!$A$7,\" \",Informations!$A$29))","v":0}]
["Total élèves évalués ",{"$f":"SUM(B26:B28)","v":0},0,0,0,0,{"$f":"SUM(G26:G28)","v":0}]
[]
[{"$f":"CONCATENATE(\"Classe : \",Informations!$A$7)","v":"Classe : "},"Compréhension de l'oral\nComprendre un message oral","Test spécifique de compréhension de l'écrit\nComprendre un texte","Étude de la langue\nSe repérer dans une phrase et identifier sa composition","Étude de la langue\nMaîtriser l'orthographe","Test spécifique en étude de la langue - lexique\nComprendre et mobiliser le lexique","Fluence"]
["Taux \"à besoins\"",{"$f":"B26/B$29","v":{"$error":"#DIV/0!"}},{"$f":"C26/C$29","v":{"$error":"#DIV/0!"}},{"$error":"#DIV/0!"},{"$error":"#DIV/0!"},{"$error":"#DIV/0!"},{"$f":"G26/G$29","v":{"$error":"#DIV/0!"}}]
["Taux \"fragile\"",{"$f":"B27/B$29","v":{"$error":"#DIV/0!"}},{"$f":"C27/C$29","v":{"$error":"#DIV/0!"}},{"$error":"#DIV/0!"},{"$error":"#DIV/0!"},{"$f":"F27/F$29","v":{"$error":"#DIV/0!"}},{"$f":"G27/G$29","v":{"$error":"#DIV/0!"}}]
["Taux \"satisfaisant\"",{"$f":"B28/B$29","v":{"$error":"#DIV/0!"}},{"$f":"C28/C$29","v":{"$error":"#DIV/0!"}},{"$error":"#DIV/0!"},{"$error":"#DIV/0!"},{"$error":"#DIV/0!"},{"$f":"G28/G$29","v":{"$error":"#DIV/0!"}}]
["Total élèves évalués ",{"$f":"B29/B$29","v":{"$error":"#DIV/0!"}},{"$f":"C29/C$29","v":{"$error":"#DIV/0!"}},{"$error":"#DIV/0!"},{"$error":"#DIV/0!"},{"$error":"#DIV/0!"},{"$f":"G29/G$29","v":{"$error":"#DIV/0!"}}]
[]
[]
[{"$f":"CONCATENATE(\"Classe : \",Informations!$A$8)","v":"Classe : "},"Compréhension de l'oral\nComprendre un message oral","Test spécifique de compréhension de l'écrit\nComprendre un texte","Étude de la langue\nSe repérer dans une phrase et identifier sa composition","Étude de la langue\nMaîtriser l'orthographe","Test spécifique en étude de la langue - lexique\nComprendre et mobiliser le lexique","Fluence"]
["Nb \"à besoins\"",{"$f":"COUNTIF(EVA6_FRANCAIS!J:J,CONCATENATE(Informations!$A$8,\" \",Informations!$A$27))","v":0},{"$f":"COUNTIF(EVA6_FRANCAIS!K:K,CONCATENATE(Informations!$A$8,\" \",Informations!$A$27))","v":0},{"$f":"COUNTIF(EVA6_FRANCAIS!L:L,CONCATENATE(Informations!$A$8,\" \",Informations!$A$27))","v":0},{"$f":"COUNTIF(EVA6_FRANCAIS!M:M,CONCATENATE(Informations!$A$8,\" \",Informations!$A$27))","v":0},{"$f":"COUNTIF(EVA6_FRANCAIS!N:N,CONCATENATE(Informations!$A$8,\" \",Informations!$A$27))","v":0},{"$f":"COUNTIF(EVA6_FRANCAIS!O:O,CONCATENATE(Informations!$A$8,\" \",Informations!$A$27))","v":0}]
["Nb \"fragile\"",{"$f":"COUNTIF(EVA6_FRANCAIS!J:J,CONCATENATE(Informations!$A$8,\" \",Informations!$A$28))","v":0},{"$f":"COUNTIF(EVA6_FRANCAIS!K:K,CONCATENATE(Informations!$A$8,\" \",Informations!$A$28))","v":0},{"$f":"COUNTIF(EVA6_FRANCAIS!L:L,CONCATENATE(Informations!$A$8,\" \",Informations!$A$28))","v":0},{"$f":"COUNTIF(EVA6_FRANCAIS!M:M,CONCATENATE(Informations!$A$8,\" \",Informations!$A$28))","v":0},{"$f":"COUNTIF(EVA6_FRANCAIS!N:N,CONCATENATE(Informations!$A$8,\" \",Informations!$A$28))","v":0},{"$f":"COUNTIF(EVA6_FRANCAIS!O:O,CONCATENATE(Informations!$A$8,\" \",Informations!$A$28))","v":0}]
["Nb \"satisfaisant\"",{"$f":"COUNTIF(EVA6_FRANCAIS!J:J,CONCATENATE(Informations!$A$8,\" \",Informations!$A$29))","v":0},{"$f":"COUNTIF(EVA6_FRANCAIS!K:K,CONCATENATE(Informations!$A$8,\" \",Informations!$A$29))","v":0},{"$f":"COUNTIF(EVA6_FRANCAIS!L:L,CONCATENATE(Informations!$A$8,\" \",Informations!$A$29))","v":0},{"$f":"COUNTIF(EVA6_FRANCAIS!M:M,CONCATENATE(Informations!$A$8,\" \",Informations!$A$29))","v":0},{"$f":"COUNTIF(EVA6_FRANCAIS!N:N,CONCATENATE(Informations!$A$8,\" \",Informations!$A$29))","v":0},{"$f":"COUNTIF(EVA6_FRANCAIS!O:O,CONCATENATE(Informations!$A$8,\" \",Informations!$A$29))","v":0}]
["Total élèves évalués ",{"$f":"SUM(B39:B41)","v":0},{"$f":"SUM(C39:C41)","v":0},0,0,0,{"$f":"SUM(G39:G41)","v":0}]
[]
[{"$f":"CONCATENATE(\"Classe : \",Informations!$A$8)","v":"Classe : "},"Compréhension de l'oral\nComprendre un message oral","Test spécifique de compréhension de l'écrit\nComprendre un texte","Étude de la langue\nSe repérer dans une phrase et identifier sa composition","Étude de la langue\nMaîtriser l'orthographe","Test spécifique en étude de la langue - lexique\nComprendre et mobiliser le lexique","Fluence"]
["Taux \"à besoins\"",{"$f":"B39/B$42","v":{"$error":"#DIV/0!"}},{"$f":"C39/C$42","v":{"$error":"#DIV/0!"}},{"$error":"#DIV/0!"},{"$error":"#DIV/0!"},{"$error":"#DIV/0!"},{"$f":"G39/G$42","v":{"$error":"#DIV/0!"}}]
["Taux \"fragile\"",{"$f":"B40/B$42","v":{"$error":"#DIV/0!"}},{"$f":"C40/C$42","v":{"$error":"#DIV/0!"}},{"$error":"#DIV/0!"},{"$error":"#DIV/0!"},{"$error":"#DIV/0!"},{"$f":"G40/G$42","v":{"$error":"#DIV/0!"}}]
["Taux \"satisfaisant\"",{"$f":"B41/B$42","v":{"$error":"#DIV/0!"}},{"$f":"C41/C$42","v":{"$error":"#DIV/0!"}},{"$error":"#DIV/0!"},{"$error":"#DIV/0!"},{"$error":"#DIV/0!"},{"$f":"G41/G$42","v":{"$error":"#DIV/0!"}}]
["Total élèves évalués ",{"$f":"B42/B$42","v":{"$error":"#DIV/0!"}},{"$f":"C42/C$42","v":{"$error":"#DIV/0!"}},{"$error":"#DIV/0!"},{"$error":"#DIV/0!"},{"$error":"#DIV/0!"},{"$f":"G42/G$42","v":{"$error":"#DIV/0!"}}]
[]
[]
[{"$f":"CONCATENATE(\"Classe : \",Informations!$A$9)","v":"Classe : "},"Compréhension de l'oral\nComprendre un message oral","Test spécifique de compréhension de l'écrit\nComprendre un texte","Étude de la langue\nSe repérer dans une phrase et identifier sa composition","Étude de la langue\nMaîtriser l'orthographe","Test spécifique en étude de la langue - lexique\nComprendre et mobiliser le lexique","Fluence"]
["Nb \"à besoins\"",{"$f":"COUNTIF(EVA6_FRANCAIS!J:J,CONCATENATE(Informations!$A$9,\" \",Informations!$A$27))","v":0},{"$f":"COUNTIF(EVA6_FRANCAIS!K:K,CONCATENATE(Informations!$A$9,\" \",Informations!$A$27))","v":0},{"$f":"COUNTIF(EVA6_FRANCAIS!L:L,CONCATENATE(Informations!$A$9,\" \",Informations!$A$27))","v":0},{"$f":"COUNTIF(EVA6_FRANCAIS!M:M,CONCATENATE(Informations!$A$9,\" \",Informations!$A$27))","v":0},{"$f":"COUNTIF(EVA6_FRANCAIS!N:N,CONCATENATE(Informations!$A$9,\" \",Informations!$A$27))","v":0},{"$f":"COUNTIF(EVA6_FRANCAIS!O:O,CONCATENATE(Informations!$A$9,\" \",Informations!$A$27))","v":0}]
["Nb \"fragile\"",{"$f":"COUNTIF(EVA6_FRANCAIS!J:J,CONCATENATE(Informations!$A$9,\" \",Informations!$A$28))","v":0},{"$f":"COUNTIF(EVA6_FRANCAIS!K:K,CONCATENATE(Informations!$A$9,\" \",Informations!$A$28))","v":0},{"$f":"COUNTIF(EVA6_FRANCAIS!L:L,CONCATENATE(Informations!$A$9,\" \",Informations!$A$28))","v":0},{"$f":"COUNTIF(EVA6_FRANCAIS!M:M,CONCATENATE(Informations!$A$9,\" \",Informations!$A$28))","v":0},{"$f":"COUNTIF(EVA6_FRANCAIS!N:N,CONCATENATE(Informations!$A$9,\" \",Informations!$A$28))","v":0},{"$f":"COUNTIF(EVA6_FRANCAIS!O:O,CONCATENATE(Informations!$A$9,\" \",Informations!$A$28))","v":0}]
["Nb \"satisfaisant\"",{"$f":"COUNTIF(EVA6_FRANCAIS!J:J,CONCATENATE(Informations!$A$9,\" \",Informations!$A$29))","v":0},{"$f":"COUNTIF(EVA6_FRANCAIS!K:K,CONCATENATE(Informations!$A$9,\" \",Informations!$A$29))","v":0},{"$f":"COUNTIF(EVA6_FRANCAIS!L:L,CONCATENATE(Informations!$A$9,\" \",Informations!$A$29))","v":0},{"$f":"COUNTIF(EVA6_FRANCAIS!M:M,CONCATENATE(Informations!$A$9,\" \",Informations!$A$29))","v":0},{"$f":"COUNTIF(EVA6_FRANCAIS!N:N,CONCATENATE(Informations!$A$9,\" \",Informations!$A$29))","v":0},{"$f":"COUNTIF(EVA6_FRANCAIS!O:O,CONCATENATE(Informations!$A$9,\" \",Informations!$A$29))","v":0}]
["Total élèves évalués ",{"$f":"SUM(B52:B54)","v":0},{"$f":"SUM(C52:C54)","v":0},0,0,0,{"$f":"SUM(G52:G54)","v":0}]
[]
[{"$f":"CONCATENATE(\"Classe : \",Informations!$A$9)","v":"Classe : "},"Compréhension de l'oral\nComprendre un message oral","Test spécifique de compréhension de l'écrit\nComprendre un texte","Étude de la langue\nSe repérer dans une phrase et identifier sa composition","Étude de la langue\nMaîtriser l'orthographe","Test spécifique en étude de la langue - lexique\nComprendre et mobiliser le lexique","Fluence"]
["Taux \"à besoins\"",{"$f":"B52/B$55","v":{"$error":"#DIV/0!"}},{"$f":"C52/C$55","v":{"$error":"#DIV/0!"}},{"$error":"#DIV/0!"},{"$error":"#DIV/0!"},{"$error":"#DIV/0!"},{"$f":"G52/G$55","v":{"$error":"#DIV/0!"}}]
["Taux \"fragile\"",{"$f":"B53/B$55","v":{"$error":"#DIV/0!"}},{"$f":"C53/C$55","v":{"$error":"#DIV/0!"}},{"$error":"#DIV/0!"},{"$error":"#DIV/0!"},{"$error":"#DIV/0!"},{"$f":"G53/G$55","v":{"$error":"#DIV/0!"}}]
["Taux \"satisfaisant\"",{"$f":"B54/B$55","v":{"$error":"#DIV/0!"}},{"$f":"C54/C$55","v":{"$error":"#DIV/0!"}},{"$error":"#DIV/0!"},{"$error":"#DIV/0!"},{"$error":"#DIV/0!"},{"$f":"G54/G$55","v":{"$error":"#DIV/0!"}}]
["Total élèves évalués ",{"$f":"B55/B$55","v":{"$error":"#DIV/0!"}},{"$f":"C55/C$55","v":{"$error":"#DIV/0!"}},{"$error":"#DIV/0!"},{"$error":"#DIV/0!"},{"$error":"#DIV/0!"},{"$f":"G55/G$55","v":{"$error":"#DIV/0!"}}]
[]
[]
[{"$f":"CONCATENATE(\"Classe : \",Informations!$A$10)","v":"Classe : "},"Compréhension de l'oral\nComprendre un message oral","Test spécifique de compréhension de l'écrit\nComprendre un texte","Étude de la langue\nSe repérer dans une phrase et identifier sa composition","Étude de la langue\nMaîtriser l'orthographe","Test spécifique en étude de la langue - lexique\nComprendre et mobiliser le lexique","Fluence"]
["Nb \"à besoins\"",{"$f":"COUNTIF(EVA6_FRANCAIS!J:J,CONCATENATE(Informations!$A$10,\" \",Informations!$A$27))","v":0},{"$f":"COUNTIF(EVA6_FRANCAIS!K:K,CONCATENATE(Informations!$A$10,\" \",Informations!$A$27))","v":0},{"$f":"COUNTIF(EVA6_FRANCAIS!L:L,CONCATENATE(Informations!$A$10,\" \",Informations!$A$27))","v":0},{"$f":"COUNTIF(EVA6_FRANCAIS!M:M,CONCATENATE(Informations!$A$10,\" \",Informations!$A$27))","v":0},{"$f":"COUNTIF(EVA6_FRANCAIS!N:N,CONCATENATE(Informations!$A$10,\" \",Informations!$A$27))","v":0},{"$f":"COUNTIF(EVA6_FRANCAIS!O:O,CONCATENATE(Informations!$A$10,\" \",Informations!$A$27))","v":0}]
["Nb \"fragile\"",{"$f":"COUNTIF(EVA6_FRANCAIS!J:J,CONCATENATE(Informations!$A$10,\" \",Informations!$A$28))","v":0},{"$f":"COUNTIF(EVA6_FRANCAIS!K:K,CONCATENATE(Informations!$A$10,\" \",Informations!$A$28))","v":0},{"$f":"COUNTIF(EVA6_FRANCAIS!L:L,CONCATENATE(Informations!$A$10,\" \",Informations!$A$28))","v":0},{"$f":"COUNTIF(EVA6_FRANCAIS!M:M,CONCATENATE(Informations!$A$10,\" \",Informations!$A$28))","v":0},{"$f":"COUNTIF(EVA6_FRANCAIS!N:N,CONCATENATE(Informations!$A$10,\" \",Informations!$A$28))","v":0},{"$f":"COUNTIF(EVA6_FRANCAIS!O:O,CONCATENATE(Informations!$A$10,\" \",Informations!$A$28))","v":0}]
["Nb \"satisfaisant\"",{"$f":"COUNTIF(EVA6_FRANCAIS!J:J,CONCATENATE(Informations!$A$10,\" \",Informations!$A$29))","v":0},{"$f":"COUNTIF(EVA6_FRANCAIS!K:K,CONCATENATE(Informations!$A$10,\" \",Informations!$A$29))","v":0},{"$f":"COUNTIF(EVA6_FRANCAIS!L:L,CONCATENATE(Informations!$A$10,\" \",Informations!$A$29))","v":0},{"$f":"COUNTIF(EVA6_FRANCAIS!M:M,CONCATENATE(Informations!$A$10,\" \",Informations!$A$29))","v":0},{"$f":"COUNTIF(EVA6_FRANCAIS!N:N,CONCATENATE(Informations!$A$10,\" \",Informations!$A$29))","v":0},{"$f":"COUNTIF(EVA6_FRANCAIS!O:O,CONCATENATE(Informations!$A$10,\" \",Informations!$A$29))","v":0}]
["Total élèves évalués ",{"$f":"SUM(B65:B67)","v":0},{"$f":"SUM(C65:C67)","v":0},0,0,0,{"$f":"SUM(G65:G67)","v":0}]
[]
[{"$f":"CONCATENATE(\"Classe : \",Informations!$A$10)","v":"Classe : "},"Compréhension de l'oral\nComprendre un message oral","Test spécifique de compréhension de l'écrit\nComprendre un texte","Étude de la langue\nSe repérer dans une phrase et identifier sa composition","Étude de la langue\nMaîtriser l'orthographe","Test spécifique en étude de la langue - lexique\nComprendre et mobiliser le lexique","Fluence"]
["Taux \"à besoins\"",{"$f":"B65/B$68","v":{"$error":"#DIV/0!"}},{"$f":"C65/C$68","v":{"$error":"#DIV/0!"}},{"$error":"#DIV/0!"},{"$error":"#DIV/0!"},{"$error":"#DIV/0!"},{"$f":"G65/G$68","v":{"$error":"#DIV/0!"}}]
["Taux \"fragile\"",{"$f":"B66/B$68","v":{"$error":"#DIV/0!"}},{"$f":"C66/C$68","v":{"$error":"#DIV/0!"}},{"$error":"#DIV/0!"},{"$error":"#DIV/0!"},{"$error":"#DIV/0!"},{"$f":"G66/G$68","v":{"$error":"#DIV/0!"}}]
["Taux \"satisfaisant\"",{"$f":"B67/B$68","v":{"$error":"#DIV/0!"}},{"$f":"C67/C$68","v":{"$error":"#DIV/0!"}},{"$error":"#DIV/0!"},{"$error":"#DIV/0!"},{"$error":"#DIV/0!"},{"$f":"G67/G$68","v":{"$error":"#DIV/0!"}}]
["Total élèves évalués ",{"$f":"B68/B$68","v":{"$error":"#DIV/0!"}},{"$f":"C68/C$68","v":{"$error":"#DIV/0!"}},{"$error":"#DIV/0!"},{"$error":"#DIV/0!"},{"$error":"#DIV/0!"},{"$f":"G68/G$68","v":{"$error":"#DIV/0!"}}]
[]
[]
[{"$f":"CONCATENATE(\"Classe : \",Informations!$A$11)","v":"Classe : "},"Compréhension de l'oral\nComprendre un message oral","Test spécifique de compréhension de l'écrit\nComprendre un texte","Étude de la langue\nSe repérer dans une phrase et identifier sa composition","Étude de la langue\nMaîtriser l'orthographe","Test spécifique en étude de la langue - lexique\nComprendre et mobiliser le lexique","Fluence"]
["Nb \"à besoins\"",{"$f":"COUNTIF(EVA6_FRANCAIS!J:J,CONCATENATE(Informations!$A$11,\" \",Informations!$A$27))","v":0},{"$f":"COUNTIF(EVA6_FRANCAIS!K:K,CONCATENATE(Informations!$A$11,\" \",Informations!$A$27))","v":0},{"$f":"COUNTIF(EVA6_FRANCAIS!L:L,CONCATENATE(Informations!$A$11,\" \",Informations!$A$27))","v":0},{"$f":"COUNTIF(EVA6_FRANCAIS!M:M,CONCATENATE(Informations!$A$11,\" \",Informations!$A$27))","v":0},{"$f":"COUNTIF(EVA6_FRANCAIS!N:N,CONCATENATE(Informations!$A$11,\" \",Informations!$A$27))","v":0},{"$f":"COUNTIF(EVA6_FRANCAIS!O:O,CONCATENATE(Informations!$A$11,\" \",Informations!$A$27))","v":0}]
["Nb \"fragile\"",{"$f":"COUNTIF(EVA6_FRANCAIS!J:J,CONCATENATE(Informations!$A$11,\" \",Informations!$A$28))","v":0},{"$f":"COUNTIF(EVA6_FRANCAIS!K:K,CONCATENATE(Informations!$A$11,\" \",Informations!$A$28))","v":0},{"$f":"COUNTIF(EVA6_FRANCAIS!L:L,CONCATENATE(Informations!$A$11,\" \",Informations!$A$28))","v":0},{"$f":"COUNTIF(EVA6_FRANCAIS!M:M,CONCATENATE(Informations!$A$11,\" \",Informations!$A$28))","v":0},{"$f":"COUNTIF(EVA6_FRANCAIS!N:N,CONCATENATE(Informations!$A$11,\" \",Informations!$A$28))","v":0},{"$f":"COUNTIF(EVA6_FRANCAIS!O:O,CONCATENATE(Informations!$A$11,\" \",Informations!$A$28))","v":0}]
["Nb \"satisfaisant\"",{"$f":"COUNTIF(EVA6_FRANCAIS!J:J,CONCATENATE(Informations!$A$11,\" \",Informations!$A$29))","v":0},{"$f":"COUNTIF(EVA6_FRANCAIS!K:K,CONCATENATE(Informations!$A$11,\" \",Informations!$A$29))","v":0},{"$f":"COUNTIF(EVA6_FRANCAIS!L:L,CONCATENATE(Informations!$A$11,\" \",Informations!$A$29))","v":0},{"$f":"COUNTIF(EVA6_FRANCAIS!M:M,CONCATENATE(Informations!$A$11,\" \",Informations!$A$29))","v":0},{"$f":"COUNTIF(EVA6_FRANCAIS!N:N,CONCATENATE(Informations!$A$11,\" \",Informations!$A$29))","v":0},{"$f":"COUNTIF(EVA6_FRANCAIS!O:O,CONCATENATE(Informations!$A$11,\" \",Informations!$A$29))","v":0}]
["Total élèves évalués ",{"$f":"SUM(B78:B80)","v":0},{"$f":"SUM(C78:C80)","v":0},0,0,0,{"$f":"SUM(G78:G80)","v":0}]
[]
[{"$f":"CONCATENATE(\"Classe : \",Informations!$A$11)","v":"Classe : "},"Compréhension de l'oral\nComprendre un message oral","Test spécifique de compréhension de l'écrit\nComprendre un texte","Étude de la langue\nSe repérer dans une phrase et identifier sa composition","Étude de la langue\nMaîtriser l'orthographe","Test spécifique en étude de la langue - lexique\nComprendre et mobiliser le lexique","Fluence"]
["Taux \"à besoins\"",{"$f":"B78/B$81","v":{"$error":"#DIV/0!"}},{"$f":"C78/C$81","v":{"$error":"#DIV/0!"}},{"$error":"#DIV/0!"},{"$error":"#DIV/0!"},{"$error":"#DIV/0!"},{"$f":"G78/G$81","v":{"$error":"#DIV/0!"}}]
["Taux \"fragile\"",{"$f":"B79/B$81","v":{"$error":"#DIV/0!"}},{"$f":"C79/C$81","v":{"$error":"#DIV/0!"}},{"$error":"#DIV/0!"},{"$error":"#DIV/0!"},{"$error":"#DIV/0!"},{"$f":"G79/G$81","v":{"$error":"#DIV/0!"}}]
["Taux \"satisfaisant\"",{"$f":"B80/B$81","v":{"$error":"#DIV/0!"}},{"$f":"C80/C$81","v":{"$error":"#DIV/0!"}},{"$error":"#DIV/0!"},{"$error":"#DIV/0!"},{"$error":"#DIV/0!"},{"$f":"G80/G$81","v":{"$error":"#DIV/0!"}}]
["Total élèves évalués ",{"$f":"B81/B$81","v":{"$error":"#DIV/0!"}},{"$f":"C81/C$81","v":{"$error":"#DIV/0!"}},{"$error":"#DIV/0!"},{"$error":"#DIV/0!"},{"$error":"#DIV/0!"},{"$f":"G81/G$81","v":{"$error":"#DIV/0!"}}]
[]
[]
[{"$f":"CONCATENATE(\"Classe : \",Informations!$A$12)","v":"Classe : "},"Compréhension de l'oral\nComprendre un message oral","Test spécifique de compréhension de l'écrit\nComprendre un texte","Étude de la langue\nSe repérer dans une phrase et identifier sa composition","Étude de la langue\nMaîtriser l'orthographe","Test spécifique en étude de la langue - lexique\nComprendre et mobiliser le lexique","Fluence"]
["Nb \"à besoins\"",{"$f":"COUNTIF(EVA6_FRANCAIS!J:J,CONCATENATE(Informations!$A$12,\" \",Informations!$A$27))","v":0},{"$f":"COUNTIF(EVA6_FRANCAIS!K:K,CONCATENATE(Informations!$A$12,\" \",Informations!$A$27))","v":0},{"$f":"COUNTIF(EVA6_FRANCAIS!L:L,CONCATENATE(Informations!$A$12,\" \",Informations!$A$27))","v":0},{"$f":"COUNTIF(EVA6_FRANCAIS!M:M,CONCATENATE(Informations!$A$12,\" \",Informations!$A$27))","v":0},{"$f":"COUNTIF(EVA6_FRANCAIS!N:N,CONCATENATE(Informations!$A$12,\" \",Informations!$A$27))","v":0},{"$f":"COUNTIF(EVA6_FRANCAIS!O:O,CONCATENATE(Informations!$A$12,\" \",Informations!$A$27))","v":0}]
["Nb \"fragile\"",{"$f":"COUNTIF(EVA6_FRANCAIS!J:J,CONCATENATE(Informations!$A$12,\" \",Informations!$A$28))","v":0},{"$f":"COUNTIF(EVA6_FRANCAIS!K:K,CONCATENATE(Informations!$A$12,\" \",Informations!$A$28))","v":0},{"$f":"COUNTIF(EVA6_FRANCAIS!L:L,CONCATENATE(Informations!$A$12,\" \",Informations!$A$28))","v":0},{"$f":"COUNTIF(EVA6_FRANCAIS!M:M,CONCATENATE(Informations!$A$12,\" \",Informations!$A$28))","v":0},{"$f":"COUNTIF(EVA6_FRANCAIS!N:N,CONCATENATE(Informations!$A$12,\" \",Informations!$A$28))","v":0},{"$f":"COUNTIF(EVA6_FRANCAIS!O:O,CONCATENATE(Informations!$A$12,\" \",Informations!$A$28))","v":0}]
["Nb \"satisfaisant\"",{"$f":"COUNTIF(EVA6_FRANCAIS!J:J,CONCATENATE(Informations!$A$12,\" \",Informations!$A$29))","v":0},{"$f":"COUNTIF(EVA6_FRANCAIS!K:K,CONCATENATE(Informations!$A$12,\" \",Informations!$A$29))","v":0},{"$f":"COUNTIF(EVA6_FRANCAIS!L:L,CONCATENATE(Informations!$A$12,\" \",Informations!$A$29))","v":0},{"$f":"COUNTIF(EVA6_FRANCAIS!M:M,CONCATENATE(Informations!$A$12,\" \",Informations!$A$29))","v":0},{"$f":"COUNTIF(EVA6_FRANCAIS!N:N,CONCATENATE(Informations!$A$12,\" \",Informations!$A$29))","v":0},{"$f":"COUNTIF(EVA6_FRANCAIS!O:O,CONCATENATE(Informations!$A$12,\" \",Informations!$A$29))","v":0}]
["Total élèves évalués ",{"$f":"SUM(B91:B93)","v":0},{"$f":"SUM(C91:C93)","v":0},0,0,0,{"$f":"SUM(G91:G93)","v":0}]
[]
[{"$f":"CONCATENATE(\"Classe : \",Informations!$A$12)","v":"Classe : "},"Compréhension de l'oral\nComprendre un message oral","Test spécifique de compréhension de l'écrit\nComprendre un texte","Étude de la langue\nSe repérer dans une phrase et identifier sa composition","Étude de la langue\nMaîtriser l'orthographe","Test spécifique en étude de la langue - lexique\nComprendre et mobiliser le lexique","Fluence"]
["Taux \"maîtrise insuffisante\"",{"$f":"B91/B$94","v":{"$error":"#DIV/0!"}},{"$f":"C91/C$94","v":{"$error":"#DIV/0!"}},{"$error":"#DIV/0!"},{"$error":"#DIV/0!"},{"$error":"#DIV/0!"},{"$f":"G91/G$94","v":{"$error":"#DIV/0!"}}]
["Taux \"maîtrise fragile\"",{"$f":"B92/B$94","v":{"$error":"#DIV/0!"}},{"$f":"C92/C$94","v":{"$error":"#DIV/0!"}},{"$error":"#DIV/0!"},{"$error":"#DIV/0!"},{"$error":"#DIV/0!"},{"$f":"G92/G$94","v":{"$error":"#DIV/0!"}}]
["Taux \"très bonne maîtrise\"",{"$f":"B93/B$94","v":{"$error":"#DIV/0!"}},{"$f":"C93/C$94","v":{"$error":"#DIV/0!"}},{"$error":"#DIV/0!"},{"$error":"#DIV/0!"},{"$error":"#DIV/0!"},{"$f":"G93/G$94","v":{"$error":"#DIV/0!"}}]
["Total élèves évalués ",{"$f":"B94/B$94","v":{"$error":"#DIV/0!"}},{"$f":"C94/C$94","v":{"$error":"#DIV/0!"}},{"$error":"#DIV/0!"},{"$error":"#DIV/0!"},{"$error":"#DIV/0!"},{"$f":"G94/G$94","v":{"$error":"#DIV/0!"}}]
[]
[]
[{"$f":"CONCATENATE(\"Classe : \",Informations!$A$13)","v":"Classe : "},"Compréhension de l'oral\nComprendre un message oral","Test spécifique de compréhension de l'écrit\nComprendre un texte","Étude de la langue\nSe repérer dans une phrase et identifier sa composition","Étude de la langue\nMaîtriser l'orthographe","Test spécifique en étude de la langue - lexique\nComprendre et mobiliser le lexique","Fluence"]
["Nb \"à besoins\"",{"$f":"COUNTIF(EVA6_FRANCAIS!J:J,CONCATENATE(Informations!$A$13,\" \",Informations!$A$27))","v":0},{"$f":"COUNTIF(EVA6_FRANCAIS!K:K,CONCATENATE(Informations!$A$13,\" \",Informations!$A$27))","v":0},{"$f":"COUNTIF(EVA6_FRANCAIS!L:L,CONCATENATE(Informations!$A$13,\" \",Informations!$A$27))","v":0},{"$f":"COUNTIF(EVA6_FRANCAIS!M:M,CONCATENATE(Informations!$A$13,\" \",Informations!$A$27))","v":0},{"$f":"COUNTIF(EVA6_FRANCAIS!N:N,CONCATENATE(Informations!$A$13,\" \",Informations!$A$27))","v":0},{"$f":"COUNTIF(EVA6_FRANCAIS!O:O,CONCATENATE(Informations!$A$13,\" \",Informations!$A$27))","v":0}]
["Nb \"fragile\"",{"$f":"COUNTIF(EVA6_FRANCAIS!J:J,CONCATENATE(Informations!$A$13,\" \",Informations!$A$28))","v":0},{"$f":"COUNTIF(EVA6_FRANCAIS!K:K,CONCATENATE(Informations!$A$13,\" \",Informations!$A$28))","v":0},{"$f":"COUNTIF(EVA6_FRANCAIS!L:L,CONCATENATE(Informations!$A$13,\" \",Informations!$A$28))","v":0},{"$f":"COUNTIF(EVA6_FRANCAIS!M:M,CONCATENATE(Informations!$A$13,\" \",Informations!$A$28))","v":0},{"$f":"COUNTIF(EVA6_FRANCAIS!N:N,CONCATENATE(Informations!$A$13,\" \",Informations!$A$28))","v":0},{"$f":"COUNTIF(EVA6_FRANCAIS!O:O,CONCATENATE(Informations!$A$13,\" \",Informations!$A$28))","v":0}]
["Nb \"satisfaisant\"",{"$f":"COUNTIF(EVA6_FRANCAIS!J:J,CONCATENATE(Informations!$A$13,\" \",Informations!$A$29))","v":0},{"$f":"COUNTIF(EVA6_FRANCAIS!K:K,CONCATENATE(Informations!$A$13,\" \",Informations!$A$29))","v":0},{"$f":"COUNTIF(EVA6_FRANCAIS!L:L,CONCATENATE(Informations!$A$13,\" \",Informations!$A$29))","v":0},{"$f":"COUNTIF(EVA6_FRANCAIS!M:M,CONCATENATE(Informations!$A$13,\" \",Informations!$A$29))","v":0},{"$f":"COUNTIF(EVA6_FRANCAIS!N:N,CONCATENATE(Informations!$A$13,\" \",Informations!$A$29))","v":0},{"$f":"COUNTIF(EVA6_FRANCAIS!O:O,CONCATENATE(Informations!$A$13,\" \",Informations!$A$29))","v":0}]
["Total élèves évalués ",{"$f":"SUM(B104:B106)","v":0},{"$f":"SUM(C104:C106)","v":0},0,0,0,{"$f":"SUM(G104:G106)","v":0}]
[]
[{"$f":"CONCATENATE(\"Classe : \",Informations!$A$13)","v":"Classe : "},"Compréhension de l'oral\nComprendre un message oral","Test spécifique de compréhension de l'écrit\nComprendre un texte","Étude de la langue\nSe repérer dans une phrase et identifier sa composition","Étude de la langue\nMaîtriser l'orthographe","Test spécifique en étude de la langue - lexique\nComprendre et mobiliser le lexique","Fluence"]
["Taux \"à besoins\"",{"$f":"B104/B$107","v":{"$error":"#DIV/0!"}},{"$f":"C104/C$107","v":{"$error":"#DIV/0!"}},{"$error":"#DIV/0!"},{"$error":"#DIV/0!"},{"$error":"#DIV/0!"},{"$f":"G104/G$107","v":{"$error":"#DIV/0!"}}]
["Taux \"fragile\"",{"$f":"B105/B$107","v":{"$error":"#DIV/0!"}},{"$f":"C105/C$107","v":{"$error":"#DIV/0!"}},{"$error":"#DIV/0!"},{"$error":"#DIV/0!"},{"$error":"#DIV/0!"},{"$f":"G105/G$107","v":{"$error":"#DIV/0!"}}]
["Taux \"satisfaisant\"",{"$f":"B106/B$107","v":{"$error":"#DIV/0!"}},{"$f":"C106/C$107","v":{"$error":"#DIV/0!"}},{"$error":"#DIV/0!"},{"$error":"#DIV/0!"},{"$error":"#DIV/0!"},{"$f":"G106/G$107","v":{"$error":"#DIV/0!"}}]
["Total élèves évalués ",{"$f":"B107/B$107","v":{"$error":"#DIV/0!"}},{"$f":"C107/C$107","v":{"$error":"#DIV/0!"}},{"$error":"#DIV/0!"},{"$error":"#DIV/0!"},{"$error":"#DIV/0!"},{"$f":"G107/G$107","v":{"$error":"#DIV/0!"}}]
[]
[]
[{"$f":"CONCATENATE(\"Classe : \",Informations!$A$14)","v":"Classe : "},"Compréhension de l'oral\nComprendre un message oral","Test spécifique de compréhension de l'écrit\nComprendre un texte","Étude de la langue\nSe repérer dans une phrase et identifier sa composition","Étude de la langue\nMaîtriser l'orthographe","Test spécifique en étude de la langue - lexique\nComprendre et mobiliser le lexique","Fluence"]
["Nb \"à besoins\"",{"$f":"COUNTIF(EVA6_FRANCAIS!J:J,CONCATENATE(Informations!$A$14,\" \",Informations!$A$27))","v":0},{"$f":"COUNTIF(EVA6_FRANCAIS!K:K,CONCATENATE(Informations!$A$14,\" \",Informations!$A$27))","v":0},{"$f":"COUNTIF(EVA6_FRANCAIS!L:L,CONCATENATE(Informations!$A$14,\" \",Informations!$A$27))","v":0},{"$f":"COUNTIF(EVA6_FRANCAIS!M:M,CONCATENATE(Informations!$A$14,\" \",Informations!$A$27))","v":0},{"$f":"COUNTIF(EVA6_FRANCAIS!N:N,CONCATENATE(Informations!$A$14,\" \",Informations!$A$27))","v":0},{"$f":"COUNTIF(EVA6_FRANCAIS!O:O,CONCATENATE(Informations!$A$14,\" \",Informations!$A$27))","v":0}]
["Nb \"fragile\"",{"$f":"COUNTIF(EVA6_FRANCAIS!J:J,CONCATENATE(Informations!$A$14,\" \",Informations!$A$28))","v":0},{"$f":"COUNTIF(EVA6_FRANCAIS!K:K,CONCATENATE(Informations!$A$14,\" \",Informations!$A$28))","v":0},{"$f":"COUNTIF(EVA6_FRANCAIS!L:L,CONCATENATE(Informations!$A$14,\" \",Informations!$A$28))","v":0},{"$f":"COUNTIF(EVA6_FRANCAIS!M:M,CONCATENATE(Informations!$A$14,\" \",Informations!$A$28))","v":0},{"$f":"COUNTIF(EVA6_FRANCAIS!N:N,CONCATENATE(Informations!$A$14,\" \",Informations!$A$28))","v":0},{"$f":"COUNTIF(EVA6_FRANCAIS!O:O,CONCATENATE(Informations!$A$14,\" \",Informations!$A$28))","v":0}]
["Nb \"satisfaisant\"",{"$f":"COUNTIF(EVA6_FRANCAIS!J:J,CONCATENATE(Informations!$A$14,\" \",Informations!$A$29))","v":0},{"$f":"COUNTIF(EVA6_FRANCAIS!K:K,CONCATENATE(Informations!$A$14,\" \",Informations!$A$29))","v":0},{"$f":"COUNTIF(EVA6_FRANCAIS!L:L,CONCATENATE(Informations!$A$14,\" \",Informations!$A$29))","v":0},{"$f":"COUNTIF(EVA6_FRANCAIS!M:M,CONCATENATE(Informations!$A$14,\" \",Informations!$A$29))","v":0},{"$f":"COUNTIF(EVA6_FRANCAIS!N:N,CONCATENATE(Informations!$A$14,\" \",Informations!$A$29))","v":0},{"$f":"COUNTIF(EVA6_FRANCAIS!O:O,CONCATENATE(Informations!$A$14,\" \",Informations!$A$29))","v":0}]
["Total élèves évalués ",{"$f":"SUM(B117:B119)","v":0},{"$f":"SUM(C117:C119)","v":0},0,0,0,{"$f":"SUM(G117:G119)","v":0}]
[]
[{"$f":"CONCATENATE(\"Classe : \",Informations!$A$14)","v":"Classe : "},"Compréhension de l'oral\nComprendre un message oral","Test spécifique de compréhension de l'écrit\nComprendre un texte","Étude de la langue\nSe repérer dans une phrase et identifier sa composition","Étude de la langue\nMaîtriser l'orthographe","Test spécifique en étude de la langue - lexique\nComprendre et mobiliser le lexique","Fluence"]
["Taux \"à besoins\"",{"$f":"B117/B$120","v":{"$error":"#DIV/0!"}},{"$f":"C117/C$120","v":{"$error":"#DIV/0!"}},{"$error":"#DIV/0!"},{"$error":"#DIV/0!"},{"$error":"#DIV/0!"},{"$f":"G117/G$120","v":{"$error":"#DIV/0!"}}]
["Taux \"fragile\"",{"$f":"B118/B$120","v":{"$error":"#DIV/0!"}},{"$f":"C118/C$120","v":{"$error":"#DIV/0!"}},{"$error":"#DIV/0!"},{"$error":"#DIV/0!"},{"$error":"#DIV/0!"},{"$f":"G118/G$120","v":{"$error":"#DIV/0!"}}]
["Taux \"satisfaisant\"",{"$f":"B119/B$120","v":{"$error":"#DIV/0!"}},{"$f":"C119/C$120","v":{"$error":"#DIV/0!"}},{"$error":"#DIV/0!"},{"$error":"#DIV/0!"},{"$error":"#DIV/0!"},{"$f":"G119/G$120","v":{"$error":"#DIV/0!"}}]
["Total élèves évalués ",{"$f":"B120/B$120","v":{"$error":"#DIV/0!"}},{"$f":"C120/C$120","v":{"$error":"#DIV/0!"}},{"$error":"#DIV/0!"},{"$error":"#DIV/0!"},{"$error":"#DIV/0!"},{"$f":"G120/G$120","v":{"$error":"#DIV/0!"}}]
[]
[]
[{"$f":"CONCATENATE(\"Classe : \",Informations!$A$15)","v":"Classe : "},"Compréhension de l'oral\nComprendre un message oral","Test spécifique de compréhension de l'écrit\nComprendre un texte","Étude de la langue\nSe repérer dans une phrase et identifier sa composition","Étude de la langue\nMaîtriser l'orthographe","Test spécifique en étude de la langue - lexique\nComprendre et mobiliser le lexique","Fluence"]
["Nb \"à besoins\"",{"$f":"COUNTIF(EVA6_FRANCAIS!J:J,CONCATENATE(Informations!$A$15,\" \",Informations!$A$27))","v":0},{"$f":"COUNTIF(EVA6_FRANCAIS!K:K,CONCATENATE(Informations!$A$15,\" \",Informations!$A$27))","v":0},{"$f":"COUNTIF(EVA6_FRANCAIS!L:L,CONCATENATE(Informations!$A$15,\" \",Informations!$A$27))","v":0},{"$f":"COUNTIF(EVA6_FRANCAIS!M:M,CONCATENATE(Informations!$A$15,\" \",Informations!$A$27))","v":0},{"$f":"COUNTIF(EVA6_FRANCAIS!N:N,CONCATENATE(Informations!$A$15,\" \",Informations!$A$27))","v":0},{"$f":"COUNTIF(EVA6_FRANCAIS!O:O,CONCATENATE(Informations!$A$15,\" \",Informations!$A$27))","v":0}]
["Nb \"fragile\"",{"$f":"COUNTIF(EVA6_FRANCAIS!J:J,CONCATENATE(Informations!$A$15,\" \",Informations!$A$28))","v":0},{"$f":"COUNTIF(EVA6_FRANCAIS!K:K,CONCATENATE(Informations!$A$15,\" \",Informations!$A$28))","v":0},{"$f":"COUNTIF(EVA6_FRANCAIS!L:L,CONCATENATE(Informations!$A$15,\" \",Informations!$A$28))","v":0},{"$f":"COUNTIF(EVA6_FRANCAIS!M:M,CONCATENATE(Informations!$A$15,\" \",Informations!$A$28))","v":0},{"$f":"COUNTIF(EVA6_FRANCAIS!N:N,CONCATENATE(Informations!$A$15,\" \",Informations!$A$28))","v":0},{"$f":"COUNTIF(EVA6_FRANCAIS!O:O,CONCATENATE(Informations!$A$15,\" \",Informations!$A$28))","v":0}]
["Nb \"satisfaisant\"",{"$f":"COUNTIF(EVA6_FRANCAIS!J:J,CONCATENATE(Informations!$A$15,\" \",Informations!$A$29))","v":0},{"$f":"COUNTIF(EVA6_FRANCAIS!K:K,CONCATENATE(Informations!$A$15,\" \",Informations!$A$29))","v":0},{"$f":"COUNTIF(EVA6_FRANCAIS!L:L,CONCATENATE(Informations!$A$15,\" \",Informations!$A$29))","v":0},{"$f":"COUNTIF(EVA6_FRANCAIS!M:M,CONCATENATE(Informations!$A$15,\" \",Informations!$A$29))","v":0},{"$f":"COUNTIF(EVA6_FRANCAIS!N:N,CONCATENATE(Informations!$A$15,\" \",Informations!$A$29))","v":0},{"$f":"COUNTIF(EVA6_FRANCAIS!O:O,CONCATENATE(Informations!$A$15,\" \",Informations!$A$29))","v":0}]
["Total élèves évalués ",{"$f":"SUM(B130:B132)","v":0},{"$f":"SUM(C130:C132)","v":0},0,0,0,{"$f":"SUM(G130:G132)","v":0}]
[]
[{"$f":"CONCATENATE(\"Classe : \",Informations!$A$15)","v":"Classe : "},"Compréhension de l'oral\nComprendre un message oral","Test spécifique de compréhension de l'écrit\nComprendre un texte","Étude de la langue\nSe repérer dans une phrase et identifier sa composition","Étude de la langue\nMaîtriser l'orthographe","Test spécifique en étude de la langue - lexique\nComprendre et mobiliser le lexique","Fluence"]
["Taux \"à besoins\"",{"$f":"B130/B$133","v":{"$error":"#DIV/0!"}},{"$f":"C130/C$133","v":{"$error":"#DIV/0!"}},{"$error":"#DIV/0!"},{"$error":"#DIV/0!"},{"$error":"#DIV/0!"},{"$f":"G130/G$133","v":{"$error":"#DIV/0!"}}]
["Taux \"fragile\"",{"$f":"B131/B$133","v":{"$error":"#DIV/0!"}},{"$f":"C131/C$133","v":{"$error":"#DIV/0!"}},{"$error":"#DIV/0!"},{"$error":"#DIV/0!"},{"$error":"#DIV/0!"},{"$f":"G131/G$133","v":{"$error":"#DIV/0!"}}]
["Taux \"satisfaisant\"",{"$f":"B132/B$133","v":{"$error":"#DIV/0!"}},{"$f":"C132/C$133","v":{"$error":"#DIV/0!"}},{"$error":"#DIV/0!"},{"$error":"#DIV/0!"},{"$error":"#DIV/0!"},{"$f":"G132/G$133","v":{"$error":"#DIV/0!"}}]
["Total élèves évalués ",{"$f":"B133/B$133","v":{"$error":"#DIV/0!"}},{"$f":"C133/C$133","v":{"$error":"#DIV/0!"}},{"$error":"#DIV/0!"},{"$error":"#DIV/0!"},{"$error":"#DIV/0!"},{"$f":"G133/G$133","v":{"$error":"#DIV/0!"}}]
[]
[]
[{"$f":"CONCATENATE(\"Classe : \",Informations!$A$16)","v":"Classe : "},"Compréhension de l'oral\nComprendre un message oral","Test spécifique de compréhension de l'écrit\nComprendre un texte","Étude de la langue\nSe repérer dans une phrase et identifier sa composition","Étude de la langue\nMaîtriser l'orthographe","Test spécifique en étude de la langue - lexique\nComprendre et mobiliser le lexique","Fluence"]
["Nb \"à besoins\"",{"$f":"COUNTIF(EVA6_FRANCAIS!J:J,CONCATENATE(Informations!$A$16,\" \",Informations!$A$27))","v":0},{"$f":"COUNTIF(EVA6_FRANCAIS!K:K,CONCATENATE(Informations!$A$16,\" \",Informations!$A$27))","v":0},{"$f":"COUNTIF(EVA6_FRANCAIS!L:L,CONCATENATE(Informations!$A$16,\" \",Informations!$A$27))","v":0},{"$f":"COUNTIF(EVA6_FRANCAIS!M:M,CONCATENATE(Informations!$A$16,\" \",Informations!$A$27))","v":0},{"$f":"COUNTIF(EVA6_FRANCAIS!N:N,CONCATENATE(Informations!$A$16,\" \",Informations!$A$27))","v":0},{"$f":"COUNTIF(EVA6_FRANCAIS!O:O,CONCATENATE(Informations!$A$16,\" \",Informations!$A$27))","v":0}]
["Nb \"fragile\"",{"$f":"COUNTIF(EVA6_FRANCAIS!J:J,CONCATENATE(Informations!$A$16,\" \",Informations!$A$28))","v":0},{"$f":"COUNTIF(EVA6_FRANCAIS!K:K,CONCATENATE(Informations!$A$16,\" \",Informations!$A$28))","v":0},{"$f":"COUNTIF(EVA6_FRANCAIS!L:L,CONCATENATE(Informations!$A$16,\" \",Informations!$A$28))","v":0},{"$f":"COUNTIF(EVA6_FRANCAIS!M:M,CONCATENATE(Informations!$A$16,\" \",Informations!$A$28))","v":0},{"$f":"COUNTIF(EVA6_FRANCAIS!N:N,CONCATENATE(Informations!$A$16,\" \",Informations!$A$28))","v":0},{"$f":"COUNTIF(EVA6_FRANCAIS!O:O,CONCATENATE(Informations!$A$16,\" \",Informations!$A$28))","v":0}]
["Nb \"satisfaisant\"",{"$f":"COUNTIF(EVA6_FRANCAIS!J:J,CONCATENATE(Informations!$A$16,\" \",Informations!$A$29))","v":0},{"$f":"COUNTIF(EVA6_FRANCAIS!K:K,CONCATENATE(Informations!$A$16,\" \",Informations!$A$29))","v":0},{"$f":"COUNTIF(EVA6_FRANCAIS!L:L,CONCATENATE(Informations!$A$16,\" \",Informations!$A$29))","v":0},{"$f":"COUNTIF(EVA6_FRANCAIS!M:M,CONCATENATE(Informations!$A$16,\" \",Informations!$A$29))","v":0},{"$f":"COUNTIF(EVA6_FRANCAIS!N:N,CONCATENATE(Informations!$A$16,\" \",Informations!$A$29))","v":0},{"$f":"COUNTIF(EVA6_FRANCAIS!O:O,CONCATENATE(Informations!$A$16,\" \",Informations!$A$29))","v":0}]
["Total élèves évalués ",{"$f":"SUM(B143:B145)","v":0},{"$f":"SUM(C143:C145)","v":0},0,0,0,{"$f":"SUM(G143:G145)","v":0}]
[]
[{"$f":"CONCATENATE(\"Classe : \",Informations!$A$16)","v":"Classe : "},"Compréhension de l'oral\nComprendre un message oral","Test spécifique de compréhension de l'écrit\nComprendre un texte","Étude de la langue\nSe repérer dans une phrase et identifier sa composition","Étude de la langue\nMaîtriser l'orthographe","Test spécifique en étude de la langue - lexique\nComprendre et mobiliser le lexique","Fluence"]
["Taux \"à besoins\"",{"$f":"B143/B$146","v":{"$error":"#DIV/0!"}},{"$f":"C143/C$146","v":{"$error":"#DIV/0!"}},{"$error":"#DIV/0!"},{"$error":"#DIV/0!"},{"$error":"#DIV/0!"},{"$f":"G143/G$146","v":{"$error":"#DIV/0!"}}]
["Taux \"fragile\"",{"$f":"B144/B$146","v":{"$error":"#DIV/0!"}},{"$f":"C144/C$146","v":{"$error":"#DIV/0!"}},{"$error":"#DIV/0!"},{"$error":"#DIV/0!"},{"$error":"#DIV/0!"},{"$f":"G144/G$146","v":{"$error":"#DIV/0!"}}]
["Taux \"satisfaisant\"",{"$f":"B145/B$146","v":{"$error":"#DIV/0!"}},{"$f":"C145/C$146","v":{"$error":"#DIV/0!"}},{"$error":"#DIV/0!"},{"$error":"#DIV/0!"},{"$error":"#DIV/0!"},{"$f":"G145/G$146","v":{"$error":"#DIV/0!"}}]
["Total élèves évalués ",{"$f":"B146/B$146","v":{"$error":"#DIV/0!"}},{"$f":"C146/C$146","v":{"$error":"#DIV/0!"}},{"$error":"#DIV/0!"},{"$error":"#DIV/0!"},{"$error":"#DIV/0!"},{"$f":"G146/G$146","v":{"$error":"#DIV/0!"}}]
[]
[]
[{"$f":"CONCATENATE(\"Classe : \",Informations!$A$17)","v":"Classe : "},"Compréhension de l'oral\nComprendre un message oral","Test spécifique de compréhension de l'écrit\nComprendre un texte","Étude de la langue\nSe repérer dans une phrase et identifier sa composition","Étude de la langue\nMaîtriser l'orthographe","Test spécifique en étude de la langue - lexique\nComprendre et mobiliser le lexique","Fluence"]
["Nb \"à besoins\"",{"$f":"COUNTIF(EVA6_FRANCAIS!J:J,CONCATENATE(Informations!$A$17,\" \",Informations!$A$27))","v":0},{"$f":"COUNTIF(EVA6_FRANCAIS!K:K,CONCATENATE(Informations!$A$17,\" \",Informations!$A$27))","v":0},{"$f":"COUNTIF(EVA6_FRANCAIS!L:L,CONCATENATE(Informations!$A$17,\" \",Informations!$A$27))","v":0},{"$f":"COUNTIF(EVA6_FRANCAIS!M:M,CONCATENATE(Informations!$A$17,\" \",Informations!$A$27))","v":0},{"$f":"COUNTIF(EVA6_FRANCAIS!N:N,CONCATENATE(Informations!$A$17,\" \",Informations!$A$27))","v":0},{"$f":"COUNTIF(EVA6_FRANCAIS!O:O,CONCATENATE(Informations!$A$17,\" \",Informations!$A$27))","v":0}]
["Nb \"fragile\"",{"$f":"COUNTIF(EVA6_FRANCAIS!J:J,CONCATENATE(Informations!$A$17,\" \",Informations!$A$28))","v":0},{"$f":"COUNTIF(EVA6_FRANCAIS!K:K,CONCATENATE(Informations!$A$17,\" \",Informations!$A$28))","v":0},{"$f":"COUNTIF(EVA6_FRANCAIS!L:L,CONCATENATE(Informations!$A$17,\" \",Informations!$A$28))","v":0},{"$f":"COUNTIF(EVA6_FRANCAIS!M:M,CONCATENATE(Informations!$A$17,\" \",Informations!$A$28))","v":0},{"$f":"COUNTIF(EVA6_FRANCAIS!N:N,CONCATENATE(Informations!$A$17,\" \",Informations!$A$28))","v":0},{"$f":"COUNTIF(EVA6_FRANCAIS!O:O,CONCATENATE(Informations!$A$17,\" \",Informations!$A$28))","v":0}]
["Nb \"satisfaisant\"",{"$f":"COUNTIF(EVA6_FRANCAIS!J:J,CONCATENATE(Informations!$A$17,\" \",Informations!$A$29))","v":0},{"$f":"COUNTIF(EVA6_FRANCAIS!K:K,CONCATENATE(Informations!$A$17,\" \",Informations!$A$29))","v":0},{"$f":"COUNTIF(EVA6_FRANCAIS!L:L,CONCATENATE(Informations!$A$17,\" \",Informations!$A$29))","v":0},{"$f":"COUNTIF(EVA6_FRANCAIS!M:M,CONCATENATE(Informations!$A$17,\" \",Informations!$A$29))","v":0},{"$f":"COUNTIF(EVA6_FRANCAIS!N:N,CONCATENATE(Informations!$A$17,\" \",Informations!$A$29))","v":0},{"$f":"COUNTIF(EVA6_FRANCAIS!O:O,CONCATENATE(Informations!$A$17,\" \",Informations!$A$29))","v":0}]
["Total élèves évalués ",{"$f":"SUM(B156:B158)","v":0},{"$f":"SUM(C156:C158)","v":0},0,0,0,{"$f":"SUM(G156:G158)","v":0}]
[]
[{"$f":"CONCATENATE(\"Classe : \",Informations!$A$17)","v":"Classe : "},"Compréhension de l'oral\nComprendre un message oral","Test spécifique de compréhension de l'écrit\nComprendre un texte","Étude de la langue\nSe repérer dans une phrase et identifier sa composition","Étude de la langue\nMaîtriser l'orthographe","Test spécifique en étude de la langue - lexique\nComprendre et mobiliser le lexique","Fluence"]
["Taux \"à besoins\"",{"$f":"B156/B$159","v":{"$error":"#DIV/0!"}},{"$f":"C156/C$159","v":{"$error":"#DIV/0!"}},{"$error":"#DIV/0!"},{"$error":"#DIV/0!"},{"$error":"#DIV/0!"},{"$f":"G156/G$159","v":{"$error":"#DIV/0!"}}]
["Taux \"fragile\"",{"$f":"B157/B$159","v":{"$error":"#DIV/0!"}},{"$f":"C157/C$159","v":{"$error":"#DIV/0!"}},{"$error":"#DIV/0!"},{"$error":"#DIV/0!"},{"$error":"#DIV/0!"},{"$f":"G157/G$159","v":{"$error":"#DIV/0!"}}]
["Taux \"satisfaisant\"",{"$f":"B158/B$159","v":{"$error":"#DIV/0!"}},{"$f":"C158/C$159","v":{"$error":"#DIV/0!"}},{"$error":"#DIV/0!"},{"$error":"#DIV/0!"},{"$error":"#DIV/0!"},{"$f":"G158/G$159","v":{"$error":"#DIV/0!"}}]
["Total élèves évalués ",{"$f":"B159/B$159","v":{"$error":"#DIV/0!"}},{"$f":"C159/C$159","v":{"$error":"#DIV/0!"}},{"$error":"#DIV/0!"},{"$error":"#DIV/0!"},{"$error":"#DIV/0!"},{"$f":"G159/G$159","v":{"$error":"#DIV/0!"}}]
[]
[]
[{"$f":"CONCATENATE(\"Classe : \",Informations!$A$18)","v":"Classe : "},"Compréhension de l'oral\nComprendre un message oral","Test spécifique de compréhension de l'écrit\nComprendre un texte","Étude de la langue\nSe repérer dans une phrase et identifier sa composition","Étude de la langue\nMaîtriser l'orthographe","Test spécifique en étude de la langue - lexique\nComprendre et mobiliser le lexique","Fluence"]
["Nb \"à besoins\"",{"$f":"COUNTIF(EVA6_FRANCAIS!J:J,CONCATENATE(Informations!$A$18,\" \",Informations!$A$27))","v":0},{"$f":"COUNTIF(EVA6_FRANCAIS!K:K,CONCATENATE(Informations!$A$18,\" \",Informations!$A$27))","v":0},{"$f":"COUNTIF(EVA6_FRANCAIS!L:L,CONCATENATE(Informations!$A$18,\" \",Informations!$A$27))","v":0},{"$f":"COUNTIF(EVA6_FRANCAIS!M:M,CONCATENATE(Informations!$A$18,\" \",Informations!$A$27))","v":0},{"$f":"COUNTIF(EVA6_FRANCAIS!N:N,CONCATENATE(Informations!$A$18,\" \",Informations!$A$27))","v":0},{"$f":"COUNTIF(EVA6_FRANCAIS!O:O,CONCATENATE(Informations!$A$18,\" \",Informations!$A$27))","v":0}]
["Nb \"fragile\"",{"$f":"COUNTIF(EVA6_FRANCAIS!J:J,CONCATENATE(Informations!$A$18,\" \",Informations!$A$28))","v":0},{"$f":"COUNTIF(EVA6_FRANCAIS!K:K,CONCATENATE(Informations!$A$18,\" \",Informations!$A$28))","v":0},{"$f":"COUNTIF(EVA6_FRANCAIS!L:L,CONCATENATE(Informations!$A$18,\" \",Informations!$A$28))","v":0},{"$f":"COUNTIF(EVA6_FRANCAIS!M:M,CONCATENATE(Informations!$A$18,\" \",Informations!$A$28))","v":0},{"$f":"COUNTIF(EVA6_FRANCAIS!N:N,CONCATENATE(Informations!$A$18,\" \",Informations!$A$28))","v":0},{"$f":"COUNTIF(EVA6_FRANCAIS!O:O,CONCATENATE(Informations!$A$18,\" \",Informations!$A$28))","v":0}]
["Nb \"satisfaisant\"",{"$f":"COUNTIF(EVA6_FRANCAIS!J:J,CONCATENATE(Informations!$A$18,\" \",Informations!$A$29))","v":0},{"$f":"COUNTIF(EVA6_FRANCAIS!K:K,CONCATENATE(Informations!$A$18,\" \",Informations!$A$29))","v":0},{"$f":"COUNTIF(EVA6_FRANCAIS!L:L,CONCATENATE(Informations!$A$18,\" \",Informations!$A$29))","v":0},{"$f":"COUNTIF(EVA6_FRANCAIS!M:M,CONCATENATE(Informations!$A$18,\" \",Informations!$A$29))","v":0},{"$f":"COUNTIF(EVA6_FRANCAIS!N:N,CONCATENATE(Informations!$A$18,\" \",Informations!$A$29))","v":0},{"$f":"COUNTIF(EVA6_FRANCAIS!O:O,CONCATENATE(Informations!$A$18,\" \",Informations!$A$29))","v":0}]
["Total élèves évalués ",{"$f":"SUM(B169:B171)","v":0},{"$f":"SUM(C169:C171)","v":0},0,0,0,{"$f":"SUM(G169:G171)","v":0}]
[]
[{"$f":"CONCATENATE(\"Classe : \",Informations!$A$18)","v":"Classe : "},"Compréhension de l'oral\nComprendre un message oral","Test spécifique de compréhension de l'écrit\nComprendre un texte","Étude de la langue\nSe repérer dans une phrase et identifier sa composition","Étude de la langue\nMaîtriser l'orthographe","Test spécifique en étude de la langue - lexique\nComprendre et mobiliser le lexique","Fluence"]
["Taux \"à besoins\"",{"$f":"B169/B$172","v":{"$error":"#DIV/0!"}},{"$f":"C169/C$172","v":{"$error":"#DIV/0!"}},{"$error":"#DIV/0!"},{"$error":"#DIV/0!"},{"$error":"#DIV/0!"},{"$f":"G169/G$172","v":{"$error":"#DIV/0!"}}]
["Taux \"fragile\"",{"$f":"B170/B$172","v":{"$error":"#DIV/0!"}},{"$f":"C170/C$172","v":{"$error":"#DIV/0!"}},{"$error":"#DIV/0!"},{"$error":"#DIV/0!"},{"$error":"#DIV/0!"},{"$f":"G170/G$172","v":{"$error":"#DIV/0!"}}]
["Taux \"satisfaisant\"",{"$f":"B171/B$172","v":{"$error":"#DIV/0!"}},{"$error":"#DIV/0!"},{"$error":"#DIV/0!"},{"$error":"#DIV/0!"},{"$error":"#DIV/0!"},{"$f":"G171/G$172","v":{"$error":"#DIV/0!"}}]
["Total élèves évalués ",{"$f":"B172/B$172","v":{"$error":"#DIV/0!"}},{"$error":"#DIV/0!"},{"$error":"#DIV/0!"},{"$error":"#DIV/0!"},{"$error":"#DIV/0!"},{"$f":"G172/G$172","v":{"$error":"#DIV/0!"}}]

{"sheet":"TDB_CLASSES_MATH","index":3,"n_rows":178,"n_cols":6,"rows_kept":178}
["Tableau de bord du collège :",{"$f":"RIGHT(C1,8)","v":"0"},{"$f":"TDB_ETAB!B1","v":0},null,{"v":0,"d":"0.0%"}]
[]
["Mathématiques","Répartition des proportions d'élèves pour chaque compétence (Rappel TDB_ETAB)"]
[null,"Compréhension de l'oral"]
["Référence : Collège","Test spécifique en automatismes\nMobiliser directement des procédures et des connaissances","Test spécifique en résolution de problèmes\nRésoudre des problèmes en utilisant des nombres et des grandeurs","Espace et géométrie\nConnaître et utiliser des notions de géométrie","Grandeurs et mesures\nConnaître des grandeurs et utiliser des unités de mesure","Nombres et calculs\nConnaître les nombres et les utiliser dans des calculs"]
["Taux \"à besoins\"",{"$f":"TDB_ETAB!B31","v":{"$error":"#DIV/0!"}},{"$f":"TDB_ETAB!C31","v":{"$error":"#DIV/0!"}},{"$f":"TDB_ETAB!D31","v":{"$error":"#DIV/0!"}},{"$f":"TDB_ETAB!E31","v":{"$error":"#DIV/0!"}},{"$f":"TDB_ETAB!F31","v":{"$error":"#DIV/0!"}}]
["Taux \"fragile\"",{"$f":"TDB_ETAB!B32","v":{"$error":"#DIV/0!"}},{"$f":"TDB_ETAB!C32","v":{"$error":"#DIV/0!"}},{"$f":"TDB_ETAB!D32","v":{"$error":"#DIV/0!"}},{"$f":"TDB_ETAB!E32","v":{"$error":"#DIV/0!"}},{"$f":"TDB_ETAB!F32","v":{"$error":"#DIV/0!"}}]
["Taux \"satisfaisant\"",{"$f":"TDB_ETAB!B33","v":{"$error":"#DIV/0!"}},{"$f":"TDB_ETAB!C33","v":{"$error":"#DIV/0!"}},{"$f":"TDB_ETAB!D33","v":{"$error":"#DIV/0!"}},{"$f":"TDB_ETAB!E33","v":{"$error":"#DIV/0!"}},{"$f":"TDB_ETAB!F33","v":{"$error":"#DIV/0!"}}]
["Total élèves évalués ",{"$f":"TDB_ETAB!B17","v":{"$error":"#DIV/0!"}},{"$f":"TDB_ETAB!C17","v":{"$error":"#DIV/0!"}},{"$f":"TDB_ETAB!D17","v":{"$error":"#DIV/0!"}},{"$f":"TDB_ETAB!E17","v":{"$error":"#DIV/0!"}},{"$f":"TDB_ETAB!F17","v":{"$error":"#DIV/0!"}}]
[]
[]
[{"$f":"CONCATENATE(\"Classe : \",Informations!$A$6)","v":"Classe : "},"Test spécifique en automatismes\nMobiliser directement des procédures et des connaissances","Test spécifique en résolution de problèmes\nRésoudre des problèmes en utilisant des nombres et des grandeurs","Espace et géométrie\nConnaître et utiliser des notions de géométrie","Grandeurs et mesures\nConnaître des grandeurs et utiliser des unités de mesure","Nombres et calculs\nConnaître les nombres et les utiliser dans des calculs"]
["Nb \"à besoins\"",{"$f":"COUNTIF(EVA6_MATHS!J:J,CONCATENATE(Informations!$A$6,\" \",Informations!$A$27))","v":0},{"$f":"COUNTIF(EVA6_MATHS!K:K,CONCATENATE(Informations!$A$6,\" \",Informations!$A$27))","v":0},{"$f":"COUNTIF(EVA6_MATHS!L:L,CONCATENATE(Informations!$A$6,\" \",Informations!$A$27))","v":0},{"$f":"COUNTIF(EVA6_MATHS!M:M,CONCATENATE(Informations!$A$6,\" \",Informations!$A$27))","v":0},{"$f":"COUNTIF(EVA6_MATHS!N:N,CONCATENATE(Informations!$A$6,\" \",Informations!$A$27))","v":0}]
["Nb \"fragile\"",{"$f":"COUNTIF(EVA6_MATHS!J:J,CONCATENATE(Informations!$A$6,\" \",Informations!$A$28))","v":0},{"$f":"COUNTIF(EVA6_MATHS!K:K,CONCATENATE(Informations!$A$6,\" \",Informations!$A$28))","v":0},{"$f":"COUNTIF(EVA6_MATHS!L:L,CONCATENATE(Informations!$A$6,\" \",Informations!$A$28))","v":0},{"$f":"COUNTIF(EVA6_MATHS!M:M,CONCATENATE(Informations!$A$6,\" \",Informations!$A$28))","v":0},{"$f":"COUNTIF(EVA6_MATHS!N:N,CONCATENATE(Informations!$A$6,\" \",Informations!$A$28))","v":0}]
["Nb \"satisfaisant\"",{"$f":"COUNTIF(EVA6_MATHS!J:J,CONCATENATE(Informations!$A$6,\" \",Informations!$A$29))","v":0},{"$f":"COUNTIF(EVA6_MATHS!K:K,CONCATENATE(Informations!$A$6,\" \",Informations!$A$29))","v":0},{"$f":"COUNTIF(EVA6_MATHS!L:L,CONCATENATE(Informations!$A$6,\" \",Informations!$A$29))","v":0},{"$f":"COUNTIF(EVA6_MATHS!M:M,CONCATENATE(Informations!$A$6,\" \",Informations!$A$29))","v":0},{"$f":"COUNTIF(EVA6_MATHS!N:N,CONCATENATE(Informations!$A$6,\" \",Informations!$A$29))","v":0}]
["Total élèves évalués ",{"$f":"SUM(B13:B15)","v":0},{"$f":"SUM(C13:C15)","v":0},0,0,0]
[]
[{"$f":"CONCATENATE(\"Classe : \",Informations!$A$6)","v":"Classe : "},"Test spécifique en automatismes\nMobiliser directement des procédures et des connaissances","Test spécifique en résolution de problèmes\nRésoudre des problèmes en utilisant des nombres et des grandeurs","Espace et géométrie\nConnaître et utiliser des notions de géométrie","Grandeurs et mesures\nConnaître des grandeurs et utiliser des unités de mesure","Nombres et calculs\nConnaître les nombres et les utiliser dans des calculs"]
["Taux \"à besoins\"",{"$f":"B13/B$16","v":{"$error":"#DIV/0!"}},{"$f":"C13/C$16","v":{"$error":"#DIV/0!"}},{"$error":"#DIV/0!"},{"$error":"#DIV/0!"},{"$error":"#DIV/0!"}]
["Taux \"fragile\"",{"$f":"B14/B$16","v":{"$error":"#DIV/0!"}},{"$error":"#DIV/0!"},{"$error":"#DIV/0!"},{"$error":"#DIV/0!"},{"$error":"#DIV/0!"}]
["Taux \"satisfaisant\"",{"$f":"B15/B$16","v":{"$error":"#DIV/0!"}},{"$error":"#DIV/0!"},{"$error":"#DIV/0!"},{"$error":"#DIV/0!"},{"$error":"#DIV/0!"}]
["Total élèves évalués ",{"$f":"B16/B$16","v":{"$error":"#DIV/0!"}},{"$error":"#DIV/0!"},{"$error":"#DIV/0!"},{"$error":"#DIV/0!"},{"$error":"#DIV/0!"}]
[]
[]
[{"$f":"CONCATENATE(\"Classe : \",Informations!$A$7)","v":"Classe : "},"Test spécifique en automatismes\nMobiliser directement des procédures et des connaissances","Test spécifique en résolution de problèmes\nRésoudre des problèmes en utilisant des nombres et des grandeurs","Espace et géométrie\nConnaître et utiliser des notions de géométrie","Grandeurs et mesures\nConnaître des grandeurs et utiliser des unités de mesure","Nombres et calculs\nConnaître les nombres et les utiliser dans des calculs"]
["Nb \"à besoins\"",{"$f":"COUNTIF(EVA6_MATHS!J:J,CONCATENATE(Informations!$A$7,\" \",Informations!$A$27))","v":0},{"$f":"COUNTIF(EVA6_MATHS!K:K,CONCATENATE(Informations!$A$7,\" \",Informations!$A$27))","v":0},{"$f":"COUNTIF(EVA6_MATHS!L:L,CONCATENATE(Informations!$A$7,\" \",Informations!$A$27))","v":0},{"$f":"COUNTIF(EVA6_MATHS!M:M,CONCATENATE(Informations!$A$7,\" \",Informations!$A$27))","v":0},{"$f":"COUNTIF(EVA6_MATHS!N:N,CONCATENATE(Informations!$A$7,\" \",Informations!$A$27))","v":0}]
["Nb \"fragile\"",{"$f":"COUNTIF(EVA6_MATHS!J:J,CONCATENATE(Informations!$A$7,\" \",Informations!$A$28))","v":0},{"$f":"COUNTIF(EVA6_MATHS!K:K,CONCATENATE(Informations!$A$7,\" \",Informations!$A$28))","v":0},{"$f":"COUNTIF(EVA6_MATHS!L:L,CONCATENATE(Informations!$A$7,\" \",Informations!$A$28))","v":0},{"$f":"COUNTIF(EVA6_MATHS!M:M,CONCATENATE(Informations!$A$7,\" \",Informations!$A$28))","v":0},{"$f":"COUNTIF(EVA6_MATHS!N:N,CONCATENATE(Informations!$A$7,\" \",Informations!$A$28))","v":0}]
["Nb \"satisfaisant\"",{"$f":"COUNTIF(EVA6_MATHS!J:J,CONCATENATE(Informations!$A$7,\" \",Informations!$A$29))","v":0},{"$f":"COUNTIF(EVA6_MATHS!K:K,CONCATENATE(Informations!$A$7,\" \",Informations!$A$29))","v":0},{"$f":"COUNTIF(EVA6_MATHS!L:L,CONCATENATE(Informations!$A$7,\" \",Informations!$A$29))","v":0},{"$f":"COUNTIF(EVA6_MATHS!M:M,CONCATENATE(Informations!$A$7,\" \",Informations!$A$29))","v":0},{"$f":"COUNTIF(EVA6_MATHS!N:N,CONCATENATE(Informations!$A$7,\" \",Informations!$A$29))","v":0}]
["Total élèves évalués ",{"$f":"SUM(B26:B28)","v":0},0,0,0,0]
[]
[{"$f":"CONCATENATE(\"Classe : \",Informations!$A$7)","v":"Classe : "},"Test spécifique en automatismes\nMobiliser directement des procédures et des connaissances","Test spécifique en résolution de problèmes\nRésoudre des problèmes en utilisant des nombres et des grandeurs","Espace et géométrie\nConnaître et utiliser des notions de géométrie","Grandeurs et mesures\nConnaître des grandeurs et utiliser des unités de mesure","Nombres et calculs\nConnaître les nombres et les utiliser dans des calculs"]
["Taux \"à besoins\"",{"$f":"B26/B$29","v":{"$error":"#DIV/0!"}},{"$f":"C26/C$29","v":{"$error":"#DIV/0!"}},{"$error":"#DIV/0!"},{"$error":"#DIV/0!"},{"$error":"#DIV/0!"}]
["Taux \"fragile\"",{"$f":"B27/B$29","v":{"$error":"#DIV/0!"}},{"$error":"#DIV/0!"},{"$error":"#DIV/0!"},{"$error":"#DIV/0!"},{"$f":"F27/F$29","v":{"$error":"#DIV/0!"}}]
["Taux \"satisfaisant\"",{"$f":"B28/B$29","v":{"$error":"#DIV/0!"}},{"$error":"#DIV/0!"},{"$error":"#DIV/0!"},{"$error":"#DIV/0!"},{"$error":"#DIV/0!"}]
["Total élèves évalués ",{"$f":"B29/B$29","v":{"$error":"#DIV/0!"}},{"$error":"#DIV/0!"},{"$error":"#DIV/0!"},{"$error":"#DIV/0!"},{"$error":"#DIV/0!"}]
[]
[]
[{"$f":"CONCATENATE(\"Classe : \",Informations!$A$8)","v":"Classe : "},"Test spécifique en automatismes\nMobiliser directement des procédures et des connaissances","Test spécifique en résolution de problèmes\nRésoudre des problèmes en utilisant des nombres et des grandeurs","Espace et géométrie\nConnaître et utiliser des notions de géométrie","Grandeurs et mesures\nConnaître des grandeurs et utiliser des unités de mesure","Nombres et calculs\nConnaître les nombres et les utiliser dans des calculs"]
["Nb \"à besoins\"",{"$f":"COUNTIF(EVA6_MATHS!J:J,CONCATENATE(Informations!$A$8,\" \",Informations!$A$27))","v":0},{"$f":"COUNTIF(EVA6_MATHS!K:K,CONCATENATE(Informations!$A$8,\" \",Informations!$A$27))","v":0},{"$f":"COUNTIF(EVA6_MATHS!L:L,CONCATENATE(Informations!$A$8,\" \",Informations!$A$27))","v":0},{"$f":"COUNTIF(EVA6_MATHS!M:M,CONCATENATE(Informations!$A$8,\" \",Informations!$A$27))","v":0},{"$f":"COUNTIF(EVA6_MATHS!N:N,CONCATENATE(Informations!$A$8,\" \",Informations!$A$27))","v":0}]
["Nb \"fragile\"",{"$f":"COUNTIF(EVA6_MATHS!J:J,CONCATENATE(Informations!$A$8,\" \",Informations!$A$28))","v":0},{"$f":"COUNTIF(EVA6_MATHS!K:K,CONCATENATE(Informations!$A$8,\" \",Informations!$A$28))","v":0},{"$f":"COUNTIF(EVA6_MATHS!L:L,CONCATENATE(Informations!$A$8,\" \",Informations!$A$28))","v":0},{"$f":"COUNTIF(EVA6_MATHS!M:M,CONCATENATE(Informations!$A$8,\" \",Informations!$A$28))","v":0},{"$f":"COUNTIF(EVA6_MATHS!N:N,CONCATENATE(Informations!$A$8,\" \",Informations!$A$28))","v":0}]
["Nb \"satisfaisant\"",{"$f":"COUNTIF(EVA6_MATHS!J:J,CONCATENATE(Informations!$A$8,\" \",Informations!$A$29))","v":0},{"$f":"COUNTIF(EVA6_MATHS!K:K,CONCATENATE(Informations!$A$8,\" \",Informations!$A$29))","v":0},{"$f":"COUNTIF(EVA6_MATHS!L:L,CONCATENATE(Informations!$A$8,\" \",Informations!$A$29))","v":0},{"$f":"COUNTIF(EVA6_MATHS!M:M,CONCATENATE(Informations!$A$8,\" \",Informations!$A$29))","v":0},{"$f":"COUNTIF(EVA6_MATHS!N:N,CONCATENATE(Informations!$A$8,\" \",Informations!$A$29))","v":0}]
["Total élèves évalués ",{"$f":"SUM(B39:B41)","v":0},{"$f":"SUM(C39:C41)","v":0},0,0,0]
[]
[{"$f":"CONCATENATE(\"Classe : \",Informations!$A$8)","v":"Classe : "},"Test spécifique en automatismes\nMobiliser directement des procédures et des connaissances","Test spécifique en résolution de problèmes\nRésoudre des problèmes en utilisant des nombres et des grandeurs","Espace et géométrie\nConnaître et utiliser des notions de géométrie","Grandeurs et mesures\nConnaître des grandeurs et utiliser des unités de mesure","Nombres et calculs\nConnaître les nombres et les utiliser dans des calculs"]
["Taux \"à besoins\"",{"$f":"B39/B$42","v":{"$error":"#DIV/0!"}},{"$f":"C39/C$42","v":{"$error":"#DIV/0!"}},{"$error":"#DIV/0!"},{"$error":"#DIV/0!"},{"$error":"#DIV/0!"}]
["Taux \"fragile\"",{"$f":"B40/B$42","v":{"$error":"#DIV/0!"}},{"$error":"#DIV/0!"},{"$error":"#DIV/0!"},{"$error":"#DIV/0!"},{"$error":"#DIV/0!"}]
["Taux \"satisfaisant\"",{"$f":"B41/B$42","v":{"$error":"#DIV/0!"}},{"$error":"#DIV/0!"},{"$error":"#DIV/0!"},{"$error":"#DIV/0!"},{"$error":"#DIV/0!"}]
["Total élèves évalués ",{"$f":"B42/B$42","v":{"$error":"#DIV/0!"}},{"$error":"#DIV/0!"},{"$error":"#DIV/0!"},{"$error":"#DIV/0!"},{"$error":"#DIV/0!"}]
[]
[]
[{"$f":"CONCATENATE(\"Classe : \",Informations!$A$9)","v":"Classe : "},"Test spécifique en automatismes\nMobiliser directement des procédures et des connaissances","Test spécifique en résolution de problèmes\nRésoudre des problèmes en utilisant des nombres et des grandeurs","Espace et géométrie\nConnaître et utiliser des notions de géométrie","Grandeurs et mesures\nConnaître des grandeurs et utiliser des unités de mesure","Nombres et calculs\nConnaître les nombres et les utiliser dans des calculs"]
["Nb \"à besoins\"",{"$f":"COUNTIF(EVA6_MATHS!J:J,CONCATENATE(Informations!$A$9,\" \",Informations!$A$27))","v":0},{"$f":"COUNTIF(EVA6_MATHS!K:K,CONCATENATE(Informations!$A$9,\" \",Informations!$A$27))","v":0},{"$f":"COUNTIF(EVA6_MATHS!L:L,CONCATENATE(Informations!$A$9,\" \",Informations!$A$27))","v":0},{"$f":"COUNTIF(EVA6_MATHS!M:M,CONCATENATE(Informations!$A$9,\" \",Informations!$A$27))","v":0},{"$f":"COUNTIF(EVA6_MATHS!N:N,CONCATENATE(Informations!$A$9,\" \",Informations!$A$27))","v":0}]
["Nb \"fragile\"",{"$f":"COUNTIF(EVA6_MATHS!J:J,CONCATENATE(Informations!$A$9,\" \",Informations!$A$28))","v":0},{"$f":"COUNTIF(EVA6_MATHS!K:K,CONCATENATE(Informations!$A$9,\" \",Informations!$A$28))","v":0},{"$f":"COUNTIF(EVA6_MATHS!L:L,CONCATENATE(Informations!$A$9,\" \",Informations!$A$28))","v":0},{"$f":"COUNTIF(EVA6_MATHS!M:M,CONCATENATE(Informations!$A$9,\" \",Informations!$A$28))","v":0},{"$f":"COUNTIF(EVA6_MATHS!N:N,CONCATENATE(Informations!$A$9,\" \",Informations!$A$28))","v":0}]
["Nb \"satisfaisant\"",{"$f":"COUNTIF(EVA6_MATHS!J:J,CONCATENATE(Informations!$A$9,\" \",Informations!$A$29))","v":0},{"$f":"COUNTIF(EVA6_MATHS!K:K,CONCATENATE(Informations!$A$9,\" \",Informations!$A$29))","v":0},{"$f":"COUNTIF(EVA6_MATHS!L:L,CONCATENATE(Informations!$A$9,\" \",Informations!$A$29))","v":0},{"$f":"COUNTIF(EVA6_MATHS!M:M,CONCATENATE(Informations!$A$9,\" \",Informations!$A$29))","v":0},{"$f":"COUNTIF(EVA6_MATHS!N:N,CONCATENATE(Informations!$A$9,\" \",Informations!$A$29))","v":0}]
["Total élèves évalués ",{"$f":"SUM(B52:B54)","v":0},{"$f":"SUM(C52:C54)","v":0},0,0,0]
[]
[{"$f":"CONCATENATE(\"Classe : \",Informations!$A$9)","v":"Classe : "},"Test spécifique en automatismes\nMobiliser directement des procédures et des connaissances","Test spécifique en résolution de problèmes\nRésoudre des problèmes en utilisant des nombres et des grandeurs","Espace et géométrie\nConnaître et utiliser des notions de géométrie","Grandeurs et mesures\nConnaître des grandeurs et utiliser des unités de mesure","Nombres et calculs\nConnaître les nombres et les utiliser dans des calculs"]
["Taux \"à besoins\"",{"$f":"B52/B$55","v":{"$error":"#DIV/0!"}},{"$f":"C52/C$55","v":{"$error":"#DIV/0!"}},{"$error":"#DIV/0!"},{"$error":"#DIV/0!"},{"$error":"#DIV/0!"}]
["Taux \"fragile\"",{"$f":"B53/B$55","v":{"$error":"#DIV/0!"}},{"$error":"#DIV/0!"},{"$error":"#DIV/0!"},{"$error":"#DIV/0!"},{"$error":"#DIV/0!"}]
["Taux \"satisfaisant\"",{"$f":"B54/B$55","v":{"$error":"#DIV/0!"}},{"$error":"#DIV/0!"},{"$error":"#DIV/0!"},{"$error":"#DIV/0!"},{"$error":"#DIV/0!"}]
["Total élèves évalués ",{"$f":"B55/B$55","v":{"$error":"#DIV/0!"}},{"$error":"#DIV/0!"},{"$error":"#DIV/0!"},{"$error":"#DIV/0!"},{"$error":"#DIV/0!"}]
[]
[]
[{"$f":"CONCATENATE(\"Classe : \",Informations!$A$10)","v":"Classe : "},"Test spécifique en automatismes\nMobiliser directement des procédures et des connaissances","Test spécifique en résolution de problèmes\nRésoudre des problèmes en utilisant des nombres et des grandeurs","Espace et géométrie\nConnaître et utiliser des notions de géométrie","Grandeurs et mesures\nConnaître des grandeurs et utiliser des unités de mesure","Nombres et calculs\nConnaître les nombres et les utiliser dans des calculs"]
["Nb \"à besoins\"",{"$f":"COUNTIF(EVA6_MATHS!J:J,CONCATENATE(Informations!$A$10,\" \",Informations!$A$27))","v":0},{"$f":"COUNTIF(EVA6_MATHS!K:K,CONCATENATE(Informations!$A$10,\" \",Informations!$A$27))","v":0},{"$f":"COUNTIF(EVA6_MATHS!L:L,CONCATENATE(Informations!$A$10,\" \",Informations!$A$27))","v":0},{"$f":"COUNTIF(EVA6_MATHS!M:M,CONCATENATE(Informations!$A$10,\" \",Informations!$A$27))","v":0},{"$f":"COUNTIF(EVA6_MATHS!N:N,CONCATENATE(Informations!$A$10,\" \",Informations!$A$27))","v":0}]
["Nb \"fragile\"",{"$f":"COUNTIF(EVA6_MATHS!J:J,CONCATENATE(Informations!$A$10,\" \",Informations!$A$28))","v":0},{"$f":"COUNTIF(EVA6_MATHS!K:K,CONCATENATE(Informations!$A$10,\" \",Informations!$A$28))","v":0},{"$f":"COUNTIF(EVA6_MATHS!L:L,CONCATENATE(Informations!$A$10,\" \",Informations!$A$28))","v":0},{"$f":"COUNTIF(EVA6_MATHS!M:M,CONCATENATE(Informations!$A$10,\" \",Informations!$A$28))","v":0},{"$f":"COUNTIF(EVA6_MATHS!N:N,CONCATENATE(Informations!$A$10,\" \",Informations!$A$28))","v":0}]
["Nb \"satisfaisant\"",{"$f":"COUNTIF(EVA6_MATHS!J:J,CONCATENATE(Informations!$A$10,\" \",Informations!$A$29))","v":0},{"$f":"COUNTIF(EVA6_MATHS!K:K,CONCATENATE(Informations!$A$10,\" \",Informations!$A$29))","v":0},{"$f":"COUNTIF(EVA6_MATHS!L:L,CONCATENATE(Informations!$A$10,\" \",Informations!$A$29))","v":0},{"$f":"COUNTIF(EVA6_MATHS!M:M,CONCATENATE(Informations!$A$10,\" \",Informations!$A$29))","v":0},{"$f":"COUNTIF(EVA6_MATHS!N:N,CONCATENATE(Informations!$A$10,\" \",Informations!$A$29))","v":0}]
["Total élèves évalués ",{"$f":"SUM(B65:B67)","v":0},{"$f":"SUM(C65:C67)","v":0},0,0,0]
[]
[{"$f":"CONCATENATE(\"Classe : \",Informations!$A$10)","v":"Classe : "},"Test spécifique en automatismes\nMobiliser directement des procédures et des connaissances","Test spécifique en résolution de problèmes\nRésoudre des problèmes en utilisant des nombres et des grandeurs","Espace et géométrie\nConnaître et utiliser des notions de géométrie","Grandeurs et mesures\nConnaître des grandeurs et utiliser des unités de mesure","Nombres et calculs\nConnaître les nombres et les utiliser dans des calculs"]
["Taux \"à besoins\"",{"$f":"B65/B$68","v":{"$error":"#DIV/0!"}},{"$f":"C65/C$68","v":{"$error":"#DIV/0!"}},{"$error":"#DIV/0!"},{"$error":"#DIV/0!"},{"$error":"#DIV/0!"}]
["Taux \"fragile\"",{"$f":"B66/B$68","v":{"$error":"#DIV/0!"}},{"$error":"#DIV/0!"},{"$error":"#DIV/0!"},{"$error":"#DIV/0!"},{"$error":"#DIV/0!"}]
["Taux \"satisfaisant\"",{"$f":"B67/B$68","v":{"$error":"#DIV/0!"}},{"$error":"#DIV/0!"},{"$error":"#DIV/0!"},{"$error":"#DIV/0!"},{"$error":"#DIV/0!"}]
["Total élèves évalués ",{"$f":"B68/B$68","v":{"$error":"#DIV/0!"}},{"$error":"#DIV/0!"},{"$error":"#DIV/0!"},{"$error":"#DIV/0!"},{"$error":"#DIV/0!"}]
[]
[]
[{"$f":"CONCATENATE(\"Classe : \",Informations!$A$11)","v":"Classe : "},"Test spécifique en automatismes\nMobiliser directement des procédures et des connaissances","Test spécifique en résolution de problèmes\nRésoudre des problèmes en utilisant des nombres et des grandeurs","Espace et géométrie\nConnaître et utiliser des notions de géométrie","Grandeurs et mesures\nConnaître des grandeurs et utiliser des unités de mesure","Nombres et calculs\nConnaître les nombres et les utiliser dans des calculs"]
["Nb \"à besoins\"",{"$f":"COUNTIF(EVA6_MATHS!J:J,CONCATENATE(Informations!$A$11,\" \",Informations!$A$27))","v":0},{"$f":"COUNTIF(EVA6_MATHS!K:K,CONCATENATE(Informations!$A$11,\" \",Informations!$A$27))","v":0},{"$f":"COUNTIF(EVA6_MATHS!L:L,CONCATENATE(Informations!$A$11,\" \",Informations!$A$27))","v":0},{"$f":"COUNTIF(EVA6_MATHS!M:M,CONCATENATE(Informations!$A$11,\" \",Informations!$A$27))","v":0},{"$f":"COUNTIF(EVA6_MATHS!N:N,CONCATENATE(Informations!$A$11,\" \",Informations!$A$27))","v":0}]
["Nb \"fragile\"",{"$f":"COUNTIF(EVA6_MATHS!J:J,CONCATENATE(Informations!$A$11,\" \",Informations!$A$28))","v":0},{"$f":"COUNTIF(EVA6_MATHS!K:K,CONCATENATE(Informations!$A$11,\" \",Informations!$A$28))","v":0},{"$f":"COUNTIF(EVA6_MATHS!L:L,CONCATENATE(Informations!$A$11,\" \",Informations!$A$28))","v":0},{"$f":"COUNTIF(EVA6_MATHS!M:M,CONCATENATE(Informations!$A$11,\" \",Informations!$A$28))","v":0},{"$f":"COUNTIF(EVA6_MATHS!N:N,CONCATENATE(Informations!$A$11,\" \",Informations!$A$28))","v":0}]
["Nb \"satisfaisant\"",{"$f":"COUNTIF(EVA6_MATHS!J:J,CONCATENATE(Informations!$A$11,\" \",Informations!$A$29))","v":0},{"$f":"COUNTIF(EVA6_MATHS!K:K,CONCATENATE(Informations!$A$11,\" \",Informations!$A$29))","v":0},{"$f":"COUNTIF(EVA6_MATHS!L:L,CONCATENATE(Informations!$A$11,\" \",Informations!$A$29))","v":0},{"$f":"COUNTIF(EVA6_MATHS!M:M,CONCATENATE(Informations!$A$11,\" \",Informations!$A$29))","v":0},{"$f":"COUNTIF(EVA6_MATHS!N:N,CONCATENATE(Informations!$A$11,\" \",Informations!$A$29))","v":0}]
["Total élèves évalués ",{"$f":"SUM(B78:B80)","v":0},{"$f":"SUM(C78:C80)","v":0},0,0,0]
[]
[{"$f":"CONCATENATE(\"Classe : \",Informations!$A$11)","v":"Classe : "},"Test spécifique en automatismes\nMobiliser directement des procédures et des connaissances","Test spécifique en résolution de problèmes\nRésoudre des problèmes en utilisant des nombres et des grandeurs","Espace et géométrie\nConnaître et utiliser des notions de géométrie","Grandeurs et mesures\nConnaître des grandeurs et utiliser des unités de mesure","Nombres et calculs\nConnaître les nombres et les utiliser dans des calculs"]
["Taux \"à besoins\"",{"$f":"B78/B$81","v":{"$error":"#DIV/0!"}},{"$f":"C78/C$81","v":{"$error":"#DIV/0!"}},{"$error":"#DIV/0!"},{"$error":"#DIV/0!"},{"$error":"#DIV/0!"}]
["Taux \"fragile\"",{"$f":"B79/B$81","v":{"$error":"#DIV/0!"}},{"$error":"#DIV/0!"},{"$error":"#DIV/0!"},{"$error":"#DIV/0!"},{"$error":"#DIV/0!"}]
["Taux \"satisfaisant\"",{"$f":"B80/B$81","v":{"$error":"#DIV/0!"}},{"$error":"#DIV/0!"},{"$error":"#DIV/0!"},{"$error":"#DIV/0!"},{"$error":"#DIV/0!"}]
["Total élèves évalués ",{"$f":"B81/B$81","v":{"$error":"#DIV/0!"}},{"$error":"#DIV/0!"},{"$error":"#DIV/0!"},{"$error":"#DIV/0!"},{"$error":"#DIV/0!"}]
[]
[]
[{"$f":"CONCATENATE(\"Classe : \",Informations!$A$12)","v":"Classe : "},"Test spécifique en automatismes\nMobiliser directement des procédures et des connaissances","Test spécifique en résolution de problèmes\nRésoudre des problèmes en utilisant des nombres et des grandeurs","Espace et géométrie\nConnaître et utiliser des notions de géométrie","Grandeurs et mesures\nConnaître des grandeurs et utiliser des unités de mesure","Nombres et calculs\nConnaître les nombres et les utiliser dans des calculs"]
["Nb \"à besoins\"",{"$f":"COUNTIF(EVA6_MATHS!J:J,CONCATENATE(Informations!$A$12,\" \",Informations!$A$27))","v":0},{"$f":"COUNTIF(EVA6_MATHS!K:K,CONCATENATE(Informations!$A$12,\" \",Informations!$A$27))","v":0},{"$f":"COUNTIF(EVA6_MATHS!L:L,CONCATENATE(Informations!$A$12,\" \",Informations!$A$27))","v":0},{"$f":"COUNTIF(EVA6_MATHS!M:M,CONCATENATE(Informations!$A$12,\" \",Informations!$A$27))","v":0},{"$f":"COUNTIF(EVA6_MATHS!N:N,CONCATENATE(Informations!$A$12,\" \",Informations!$A$27))","v":0}]
["Nb \"fragile\"",{"$f":"COUNTIF(EVA6_MATHS!J:J,CONCATENATE(Informations!$A$12,\" \",Informations!$A$28))","v":0},{"$f":"COUNTIF(EVA6_MATHS!K:K,CONCATENATE(Informations!$A$12,\" \",Informations!$A$28))","v":0},{"$f":"COUNTIF(EVA6_MATHS!L:L,CONCATENATE(Informations!$A$12,\" \",Informations!$A$28))","v":0},{"$f":"COUNTIF(EVA6_MATHS!M:M,CONCATENATE(Informations!$A$12,\" \",Informations!$A$28))","v":0},{"$f":"COUNTIF(EVA6_MATHS!N:N,CONCATENATE(Informations!$A$12,\" \",Informations!$A$28))","v":0}]
["Nb \"satisfaisant\"",{"$f":"COUNTIF(EVA6_MATHS!J:J,CONCATENATE(Informations!$A$12,\" \",Informations!$A$29))","v":0},{"$f":"COUNTIF(EVA6_MATHS!K:K,CONCATENATE(Informations!$A$12,\" \",Informations!$A$29))","v":0},{"$f":"COUNTIF(EVA6_MATHS!L:L,CONCATENATE(Informations!$A$12,\" \",Informations!$A$29))","v":0},{"$f":"COUNTIF(EVA6_MATHS!M:M,CONCATENATE(Informations!$A$12,\" \",Informations!$A$29))","v":0},{"$f":"COUNTIF(EVA6_MATHS!N:N,CONCATENATE(Informations!$A$12,\" \",Informations!$A$29))","v":0}]
["Total élèves évalués ",{"$f":"SUM(B91:B93)","v":0},{"$f":"SUM(C91:C93)","v":0},0,0,0]
[]
[{"$f":"CONCATENATE(\"Classe : \",Informations!$A$12)","v":"Classe : "},"Test spécifique en automatismes\nMobiliser directement des procédures et des connaissances","Test spécifique en résolution de problèmes\nRésoudre des problèmes en utilisant des nombres et des grandeurs","Espace et géométrie\nConnaître et utiliser des notions de géométrie","Grandeurs et mesures\nConnaître des grandeurs et utiliser des unités de mesure","Nombres et calculs\nConnaître les nombres et les utiliser dans des calculs"]
["Taux \"maîtrise insuffisante\"",{"$f":"B91/B$94","v":{"$error":"#DIV/0!"}},{"$f":"C91/C$94","v":{"$error":"#DIV/0!"}},{"$error":"#DIV/0!"},{"$error":"#DIV/0!"},{"$error":"#DIV/0!"}]
["Taux \"maîtrise fragile\"",{"$f":"B92/B$94","v":{"$error":"#DIV/0!"}},{"$error":"#DIV/0!"},{"$error":"#DIV/0!"},{"$error":"#DIV/0!"},{"$error":"#DIV/0!"}]
["Taux \"très bonne maîtrise\"",{"$f":"B93/B$94","v":{"$error":"#DIV/0!"}},{"$error":"#DIV/0!"},{"$error":"#DIV/0!"},{"$error":"#DIV/0!"},{"$error":"#DIV/0!"}]
["Total élèves évalués ",{"$f":"B94/B$94","v":{"$error":"#DIV/0!"}},{"$error":"#DIV/0!"},{"$error":"#DIV/0!"},{"$error":"#DIV/0!"},{"$error":"#DIV/0!"}]
[]
[]
[{"$f":"CONCATENATE(\"Classe : \",Informations!$A$13)","v":"Classe : "},"Test spécifique en automatismes\nMobiliser directement des procédures et des connaissances","Test spécifique en résolution de problèmes\nRésoudre des problèmes en utilisant des nombres et des grandeurs","Espace et géométrie\nConnaître et utiliser des notions de géométrie","Grandeurs et mesures\nConnaître des grandeurs et utiliser des unités de mesure","Nombres et calculs\nConnaître les nombres et les utiliser dans des calculs"]
["Nb \"à besoins\"",{"$f":"COUNTIF(EVA6_MATHS!J:J,CONCATENATE(Informations!$A$13,\" \",Informations!$A$27))","v":0},{"$f":"COUNTIF(EVA6_MATHS!K:K,CONCATENATE(Informations!$A$13,\" \",Informations!$A$27))","v":0},{"$f":"COUNTIF(EVA6_MATHS!L:L,CONCATENATE(Informations!$A$13,\" \",Informations!$A$27))","v":0},{"$f":"COUNTIF(EVA6_MATHS!M:M,CONCATENATE(Informations!$A$13,\" \",Informations!$A$27))","v":0},{"$f":"COUNTIF(EVA6_MATHS!N:N,CONCATENATE(Informations!$A$13,\" \",Informations!$A$27))","v":0}]
["Nb \"fragile\"",{"$f":"COUNTIF(EVA6_MATHS!J:J,CONCATENATE(Informations!$A$13,\" \",Informations!$A$28))","v":0},{"$f":"COUNTIF(EVA6_MATHS!K:K,CONCATENATE(Informations!$A$13,\" \",Informations!$A$28))","v":0},{"$f":"COUNTIF(EVA6_MATHS!L:L,CONCATENATE(Informations!$A$13,\" \",Informations!$A$28))","v":0},{"$f":"COUNTIF(EVA6_MATHS!M:M,CONCATENATE(Informations!$A$13,\" \",Informations!$A$28))","v":0},{"$f":"COUNTIF(EVA6_MATHS!N:N,CONCATENATE(Informations!$A$13,\" \",Informations!$A$28))","v":0}]
["Nb \"satisfaisant\"",{"$f":"COUNTIF(EVA6_MATHS!J:J,CONCATENATE(Informations!$A$13,\" \",Informations!$A$29))","v":0},{"$f":"COUNTIF(EVA6_MATHS!K:K,CONCATENATE(Informations!$A$13,\" \",Informations!$A$29))","v":0},{"$f":"COUNTIF(EVA6_MATHS!L:L,CONCATENATE(Informations!$A$13,\" \",Informations!$A$29))","v":0},{"$f":"COUNTIF(EVA6_MATHS!M:M,CONCATENATE(Informations!$A$13,\" \",Informations!$A$29))","v":0},{"$f":"COUNTIF(EVA6_MATHS!N:N,CONCATENATE(Informations!$A$13,\" \",Informations!$A$29))","v":0}]
["Total élèves évalués ",{"$f":"SUM(B104:B106)","v":0},{"$f":"SUM(C104:C106)","v":0},0,0,0]
[]
[{"$f":"CONCATENATE(\"Classe : \",Informations!$A$13)","v":"Classe : "},"Test spécifique en automatismes\nMobiliser directement des procédures et des connaissances","Test spécifique en résolution de problèmes\nRésoudre des problèmes en utilisant des nombres et des grandeurs","Espace et géométrie\nConnaître et utiliser des notions de géométrie","Grandeurs et mesures\nConnaître des grandeurs et utiliser des unités de mesure","Nombres et calculs\nConnaître les nombres et les utiliser dans des calculs"]
["Taux \"à besoins\"",{"$f":"B104/B$107","v":{"$error":"#DIV/0!"}},{"$f":"C104/C$107","v":{"$error":"#DIV/0!"}},{"$error":"#DIV/0!"},{"$error":"#DIV/0!"},{"$error":"#DIV/0!"}]
["Taux \"fragile\"",{"$f":"B105/B$107","v":{"$error":"#DIV/0!"}},{"$error":"#DIV/0!"},{"$error":"#DIV/0!"},{"$error":"#DIV/0!"},{"$error":"#DIV/0!"}]
["Taux \"satisfaisant\"",{"$f":"B106/B$107","v":{"$error":"#DIV/0!"}},{"$error":"#DIV/0!"},{"$error":"#DIV/0!"},{"$error":"#DIV/0!"},{"$error":"#DIV/0!"}]
["Total élèves évalués ",{"$f":"B107/B$107","v":{"$error":"#DIV/0!"}},{"$error":"#DIV/0!"},{"$error":"#DIV/0!"},{"$error":"#DIV/0!"},{"$error":"#DIV/0!"}]
[]
[]
[{"$f":"CONCATENATE(\"Classe : \",Informations!$A$14)","v":"Classe : "},"Test spécifique en automatismes\nMobiliser directement des procédures et des connaissances","Test spécifique en résolution de problèmes\nRésoudre des problèmes en utilisant des nombres et des grandeurs","Espace et géométrie\nConnaître et utiliser des notions de géométrie","Grandeurs et mesures\nConnaître des grandeurs et utiliser des unités de mesure","Nombres et calculs\nConnaître les nombres et les utiliser dans des calculs"]
["Nb \"à besoins\"",{"$f":"COUNTIF(EVA6_MATHS!J:J,CONCATENATE(Informations!$A$14,\" \",Informations!$A$27))","v":0},{"$f":"COUNTIF(EVA6_MATHS!K:K,CONCATENATE(Informations!$A$14,\" \",Informations!$A$27))","v":0},{"$f":"COUNTIF(EVA6_MATHS!L:L,CONCATENATE(Informations!$A$14,\" \",Informations!$A$27))","v":0},{"$f":"COUNTIF(EVA6_MATHS!M:M,CONCATENATE(Informations!$A$14,\" \",Informations!$A$27))","v":0},{"$f":"COUNTIF(EVA6_MATHS!N:N,CONCATENATE(Informations!$A$14,\" \",Informations!$A$27))","v":0}]
["Nb \"fragile\"",{"$f":"COUNTIF(EVA6_MATHS!J:J,CONCATENATE(Informations!$A$14,\" \",Informations!$A$28))","v":0},{"$f":"COUNTIF(EVA6_MATHS!K:K,CONCATENATE(Informations!$A$14,\" \",Informations!$A$28))","v":0},{"$f":"COUNTIF(EVA6_MATHS!L:L,CONCATENATE(Informations!$A$14,\" \",Informations!$A$28))","v":0},{"$f":"COUNTIF(EVA6_MATHS!M:M,CONCATENATE(Informations!$A$14,\" \",Informations!$A$28))","v":0},{"$f":"COUNTIF(EVA6_MATHS!N:N,CONCATENATE(Informations!$A$14,\" \",Informations!$A$28))","v":0}]
["Nb \"satisfaisant\"",{"$f":"COUNTIF(EVA6_MATHS!J:J,CONCATENATE(Informations!$A$14,\" \",Informations!$A$29))","v":0},{"$f":"COUNTIF(EVA6_MATHS!K:K,CONCATENATE(Informations!$A$14,\" \",Informations!$A$29))","v":0},{"$f":"COUNTIF(EVA6_MATHS!L:L,CONCATENATE(Informations!$A$14,\" \",Informations!$A$29))","v":0},{"$f":"COUNTIF(EVA6_MATHS!M:M,CONCATENATE(Informations!$A$14,\" \",Informations!$A$29))","v":0},{"$f":"COUNTIF(EVA6_MATHS!N:N,CONCATENATE(Informations!$A$14,\" \",Informations!$A$29))","v":0}]
["Total élèves évalués ",{"$f":"SUM(B117:B119)","v":0},{"$f":"SUM(C117:C119)","v":0},0,0,0]
[]
[{"$f":"CONCATENATE(\"Classe : \",Informations!$A$14)","v":"Classe : "},"Test spécifique en automatismes\nMobiliser directement des procédures et des connaissances","Test spécifique en résolution de problèmes\nRésoudre des problèmes en utilisant des nombres et des grandeurs","Espace et géométrie\nConnaître et utiliser des notions de géométrie","Grandeurs et mesures\nConnaître des grandeurs et utiliser des unités de mesure","Nombres et calculs\nConnaître les nombres et les utiliser dans des calculs"]
["Taux \"à besoins\"",{"$f":"B117/B$120","v":{"$error":"#DIV/0!"}},{"$f":"C117/C$120","v":{"$error":"#DIV/0!"}},{"$error":"#DIV/0!"},{"$error":"#DIV/0!"},{"$error":"#DIV/0!"}]
["Taux \"fragile\"",{"$f":"B118/B$120","v":{"$error":"#DIV/0!"}},{"$error":"#DIV/0!"},{"$error":"#DIV/0!"},{"$error":"#DIV/0!"},{"$error":"#DIV/0!"}]
["Taux \"satisfaisant\"",{"$f":"B119/B$120","v":{"$error":"#DIV/0!"}},{"$error":"#DIV/0!"},{"$error":"#DIV/0!"},{"$error":"#DIV/0!"},{"$error":"#DIV/0!"}]
["Total élèves évalués ",{"$f":"B120/B$120","v":{"$error":"#DIV/0!"}},{"$error":"#DIV/0!"},{"$error":"#DIV/0!"},{"$error":"#DIV/0!"},{"$error":"#DIV/0!"}]
[]
[]
[{"$f":"CONCATENATE(\"Classe : \",Informations!$A$15)","v":"Classe : "},"Test spécifique en automatismes\nMobiliser directement des procédures et des connaissances","Test spécifique en résolution de problèmes\nRésoudre des problèmes en utilisant des nombres et des grandeurs","Espace et géométrie\nConnaître et utiliser des notions de géométrie","Grandeurs et mesures\nConnaître des grandeurs et utiliser des unités de mesure","Nombres et calculs\nConnaître les nombres et les utiliser dans des calculs"]
["Nb \"à besoins\"",{"$f":"COUNTIF(EVA6_MATHS!J:J,CONCATENATE(Informations!$A$15,\" \",Informations!$A$27))","v":0},{"$f":"COUNTIF(EVA6_MATHS!K:K,CONCATENATE(Informations!$A$15,\" \",Informations!$A$27))","v":0},{"$f":"COUNTIF(EVA6_MATHS!L:L,CONCATENATE(Informations!$A$15,\" \",Informations!$A$27))","v":0},{"$f":"COUNTIF(EVA6_MATHS!M:M,CONCATENATE(Informations!$A$15,\" \",Informations!$A$27))","v":0},{"$f":"COUNTIF(EVA6_MATHS!N:N,CONCATENATE(Informations!$A$15,\" \",Informations!$A$27))","v":0}]
["Nb \"fragile\"",{"$f":"COUNTIF(EVA6_MATHS!J:J,CONCATENATE(Informations!$A$15,\" \",Informations!$A$28))","v":0},{"$f":"COUNTIF(EVA6_MATHS!K:K,CONCATENATE(Informations!$A$15,\" \",Informations!$A$28))","v":0},{"$f":"COUNTIF(EVA6_MATHS!L:L,CONCATENATE(Informations!$A$15,\" \",Informations!$A$28))","v":0},{"$f":"COUNTIF(EVA6_MATHS!M:M,CONCATENATE(Informations!$A$15,\" \",Informations!$A$28))","v":0},{"$f":"COUNTIF(EVA6_MATHS!N:N,CONCATENATE(Informations!$A$15,\" \",Informations!$A$28))","v":0}]
["Nb \"satisfaisant\"",{"$f":"COUNTIF(EVA6_MATHS!J:J,CONCATENATE(Informations!$A$15,\" \",Informations!$A$29))","v":0},{"$f":"COUNTIF(EVA6_MATHS!K:K,CONCATENATE(Informations!$A$15,\" \",Informations!$A$29))","v":0},{"$f":"COUNTIF(EVA6_MATHS!L:L,CONCATENATE(Informations!$A$15,\" \",Informations!$A$29))","v":0},{"$f":"COUNTIF(EVA6_MATHS!M:M,CONCATENATE(Informations!$A$15,\" \",Informations!$A$29))","v":0},{"$f":"COUNTIF(EVA6_MATHS!N:N,CONCATENATE(Informations!$A$15,\" \",Informations!$A$29))","v":0}]
["Total élèves évalués ",{"$f":"SUM(B130:B132)","v":0},{"$f":"SUM(C130:C132)","v":0},0,0,0]
[]
[{"$f":"CONCATENATE(\"Classe : \",Informations!$A$15)","v":"Classe : "},"Test spécifique en automatismes\nMobiliser directement des procédures et des connaissances","Test spécifique en résolution de problèmes\nRésoudre des problèmes en utilisant des nombres et des grandeurs","Espace et géométrie\nConnaître et utiliser des notions de géométrie","Grandeurs et mesures\nConnaître des grandeurs et utiliser des unités de mesure","Nombres et calculs\nConnaître les nombres et les utiliser dans des calculs"]
["Taux \"à besoins\"",{"$f":"B130/B$133","v":{"$error":"#DIV/0!"}},{"$f":"C130/C$133","v":{"$error":"#DIV/0!"}},{"$error":"#DIV/0!"},{"$error":"#DIV/0!"},{"$error":"#DIV/0!"}]
["Taux \"fragile\"",{"$f":"B131/B$133","v":{"$error":"#DIV/0!"}},{"$error":"#DIV/0!"},{"$error":"#DIV/0!"},{"$error":"#DIV/0!"},{"$error":"#DIV/0!"}]
["Taux \"satisfaisant\"",{"$f":"B132/B$133","v":{"$error":"#DIV/0!"}},{"$error":"#DIV/0!"},{"$error":"#DIV/0!"},{"$error":"#DIV/0!"},{"$error":"#DIV/0!"}]
["Total élèves évalués ",{"$f":"B133/B$133","v":{"$error":"#DIV/0!"}},{"$error":"#DIV/0!"},{"$error":"#DIV/0!"},{"$error":"#DIV/0!"},{"$error":"#DIV/0!"}]
[]
[]
[{"$f":"CONCATENATE(\"Classe : \",Informations!$A$16)","v":"Classe : "},"Test spécifique en automatismes\nMobiliser directement des procédures et des connaissances","Test spécifique en résolution de problèmes\nRésoudre des problèmes en utilisant des nombres et des grandeurs","Espace et géométrie\nConnaître et utiliser des notions de géométrie","Grandeurs et mesures\nConnaître des grandeurs et utiliser des unités de mesure","Nombres et calculs\nConnaître les nombres et les utiliser dans des calculs"]
["Nb \"à besoins\"",{"$f":"COUNTIF(EVA6_MATHS!J:J,CONCATENATE(Informations!$A$16,\" \",Informations!$A$27))","v":0},{"$f":"COUNTIF(EVA6_MATHS!K:K,CONCATENATE(Informations!$A$16,\" \",Informations!$A$27))","v":0},{"$f":"COUNTIF(EVA6_MATHS!L:L,CONCATENATE(Informations!$A$16,\" \",Informations!$A$27))","v":0},{"$f":"COUNTIF(EVA6_MATHS!M:M,CONCATENATE(Informations!$A$16,\" \",Informations!$A$27))","v":0},{"$f":"COUNTIF(EVA6_MATHS!N:N,CONCATENATE(Informations!$A$16,\" \",Informations!$A$27))","v":0}]
["Nb \"fragile\"",{"$f":"COUNTIF(EVA6_MATHS!J:J,CONCATENATE(Informations!$A$16,\" \",Informations!$A$28))","v":0},{"$f":"COUNTIF(EVA6_MATHS!K:K,CONCATENATE(Informations!$A$16,\" \",Informations!$A$28))","v":0},{"$f":"COUNTIF(EVA6_MATHS!L:L,CONCATENATE(Informations!$A$16,\" \",Informations!$A$28))","v":0},{"$f":"COUNTIF(EVA6_MATHS!M:M,CONCATENATE(Informations!$A$16,\" \",Informations!$A$28))","v":0},{"$f":"COUNTIF(EVA6_MATHS!N:N,CONCATENATE(Informations!$A$16,\" \",Informations!$A$28))","v":0}]
["Nb \"satisfaisant\"",{"$f":"COUNTIF(EVA6_MATHS!J:J,CONCATENATE(Informations!$A$16,\" \",Informations!$A$29))","v":0},{"$f":"COUNTIF(EVA6_MATHS!K:K,CONCATENATE(Informations!$A$16,\" \",Informations!$A$29))","v":0},{"$f":"COUNTIF(EVA6_MATHS!L:L,CONCATENATE(Informations!$A$16,\" \",Informations!$A$29))","v":0},{"$f":"COUNTIF(EVA6_MATHS!M:M,CONCATENATE(Informations!$A$16,\" \",Informations!$A$29))","v":0},{"$f":"COUNTIF(EVA6_MATHS!N:N,CONCATENATE(Informations!$A$16,\" \",Informations!$A$29))","v":0}]
["Total élèves évalués ",{"$f":"SUM(B143:B145)","v":0},{"$f":"SUM(C143:C145)","v":0},0,0,0]
[]
[{"$f":"CONCATENATE(\"Classe : \",Informations!$A$16)","v":"Classe : "},"Test spécifique en automatismes\nMobiliser directement des procédures et des connaissances","Test spécifique en résolution de problèmes\nRésoudre des problèmes en utilisant des nombres et des grandeurs","Espace et géométrie\nConnaître et utiliser des notions de géométrie","Grandeurs et mesures\nConnaître des grandeurs et utiliser des unités de mesure","Nombres et calculs\nConnaître les nombres et les utiliser dans des calculs"]
["Taux \"à besoins\"",{"$f":"B143/B$146","v":{"$error":"#DIV/0!"}},{"$f":"C143/C$146","v":{"$error":"#DIV/0!"}},{"$error":"#DIV/0!"},{"$error":"#DIV/0!"},{"$error":"#DIV/0!"}]
["Taux \"fragile\"",{"$f":"B144/B$146","v":{"$error":"#DIV/0!"}},{"$error":"#DIV/0!"},{"$error":"#DIV/0!"},{"$error":"#DIV/0!"},{"$error":"#DIV/0!"}]
["Taux \"satisfaisant\"",{"$f":"B145/B$146","v":{"$error":"#DIV/0!"}},{"$error":"#DIV/0!"},{"$error":"#DIV/0!"},{"$error":"#DIV/0!"},{"$error":"#DIV/0!"}]
["Total élèves évalués ",{"$f":"B146/B$146","v":{"$error":"#DIV/0!"}},{"$error":"#DIV/0!"},{"$error":"#DIV/0!"},{"$error":"#DIV/0!"},{"$error":"#DIV/0!"}]
[]
[]
[{"$f":"CONCATENATE(\"Classe : \",Informations!$A$17)","v":"Classe : "},"Test spécifique en automatismes\nMobiliser directement des procédures et des connaissances","Test spécifique en résolution de problèmes\nRésoudre des problèmes en utilisant des nombres et des grandeurs","Espace et géométrie\nConnaître et utiliser des notions de géométrie","Grandeurs et mesures\nConnaître des grandeurs et utiliser des unités de mesure","Nombres et calculs\nConnaître les nombres et les utiliser dans des calculs"]
["Nb \"à besoins\"",{"$f":"COUNTIF(EVA6_MATHS!J:J,CONCATENATE(Informations!$A$17,\" \",Informations!$A$27))","v":0},{"$f":"COUNTIF(EVA6_MATHS!K:K,CONCATENATE(Informations!$A$17,\" \",Informations!$A$27))","v":0},{"$f":"COUNTIF(EVA6_MATHS!L:L,CONCATENATE(Informations!$A$17,\" \",Informations!$A$27))","v":0},{"$f":"COUNTIF(EVA6_MATHS!M:M,CONCATENATE(Informations!$A$17,\" \",Informations!$A$27))","v":0},{"$f":"COUNTIF(EVA6_MATHS!N:N,CONCATENATE(Informations!$A$17,\" \",Informations!$A$27))","v":0}]
["Nb \"fragile\"",{"$f":"COUNTIF(EVA6_MATHS!J:J,CONCATENATE(Informations!$A$17,\" \",Informations!$A$28))","v":0},{"$f":"COUNTIF(EVA6_MATHS!K:K,CONCATENATE(Informations!$A$17,\" \",Informations!$A$28))","v":0},{"$f":"COUNTIF(EVA6_MATHS!L:L,CONCATENATE(Informations!$A$17,\" \",Informations!$A$28))","v":0},{"$f":"COUNTIF(EVA6_MATHS!M:M,CONCATENATE(Informations!$A$17,\" \",Informations!$A$28))","v":0},{"$f":"COUNTIF(EVA6_MATHS!N:N,CONCATENATE(Informations!$A$17,\" \",Informations!$A$28))","v":0}]
["Nb \"satisfaisant\"",{"$f":"COUNTIF(EVA6_MATHS!J:J,CONCATENATE(Informations!$A$17,\" \",Informations!$A$29))","v":0},{"$f":"COUNTIF(EVA6_MATHS!K:K,CONCATENATE(Informations!$A$17,\" \",Informations!$A$29))","v":0},{"$f":"COUNTIF(EVA6_MATHS!L:L,CONCATENATE(Informations!$A$17,\" \",Informations!$A$29))","v":0},{"$f":"COUNTIF(EVA6_MATHS!M:M,CONCATENATE(Informations!$A$17,\" \",Informations!$A$29))","v":0},{"$f":"COUNTIF(EVA6_MATHS!N:N,CONCATENATE(Informations!$A$17,\" \",Informations!$A$29))","v":0}]
["Total élèves évalués ",{"$f":"SUM(B156:B158)","v":0},{"$f":"SUM(C156:C158)","v":0},0,0,0]
[]
[{"$f":"CONCATENATE(\"Classe : \",Informations!$A$17)","v":"Classe : "},"Test spécifique en automatismes\nMobiliser directement des procédures et des connaissances","Test spécifique en résolution de problèmes\nRésoudre des problèmes en utilisant des nombres et des grandeurs","Espace et géométrie\nConnaître et utiliser des notions de géométrie","Grandeurs et mesures\nConnaître des grandeurs et utiliser des unités de mesure","Nombres et calculs\nConnaître les nombres et les utiliser dans des calculs"]
["Taux \"à besoins\"",{"$f":"B156/B$159","v":{"$error":"#DIV/0!"}},{"$f":"C156/C$159","v":{"$error":"#DIV/0!"}},{"$error":"#DIV/0!"},{"$error":"#DIV/0!"},{"$error":"#DIV/0!"}]
["Taux \"fragile\"",{"$f":"B157/B$159","v":{"$error":"#DIV/0!"}},{"$error":"#DIV/0!"},{"$error":"#DIV/0!"},{"$error":"#DIV/0!"},{"$error":"#DIV/0!"}]
["Taux \"satisfaisant\"",{"$f":"B158/B$159","v":{"$error":"#DIV/0!"}},{"$error":"#DIV/0!"},{"$error":"#DIV/0!"},{"$error":"#DIV/0!"},{"$error":"#DIV/0!"}]
["Total élèves évalués ",{"$f":"B159/B$159","v":{"$error":"#DIV/0!"}},{"$error":"#DIV/0!"},{"$error":"#DIV/0!"},{"$error":"#DIV/0!"},{"$error":"#DIV/0!"}]
[]
[]
[{"$f":"CONCATENATE(\"Classe : \",Informations!$A$18)","v":"Classe : "},"Test spécifique en automatismes\nMobiliser directement des procédures et des connaissances","Test spécifique en résolution de problèmes\nRésoudre des problèmes en utilisant des nombres et des grandeurs","Espace et géométrie\nConnaître et utiliser des notions de géométrie","Grandeurs et mesures\nConnaître des grandeurs et utiliser des unités de mesure","Nombres et calculs\nConnaître les nombres et les utiliser dans des calculs"]
["Nb \"à besoins\"",{"$f":"COUNTIF(EVA6_MATHS!J:J,CONCATENATE(Informations!$A$18,\" \",Informations!$A$27))","v":0},{"$f":"COUNTIF(EVA6_MATHS!K:K,CONCATENATE(Informations!$A$18,\" \",Informations!$A$27))","v":0},{"$f":"COUNTIF(EVA6_MATHS!L:L,CONCATENATE(Informations!$A$18,\" \",Informations!$A$27))","v":0},{"$f":"COUNTIF(EVA6_MATHS!M:M,CONCATENATE(Informations!$A$18,\" \",Informations!$A$27))","v":0},{"$f":"COUNTIF(EVA6_MATHS!N:N,CONCATENATE(Informations!$A$18,\" \",Informations!$A$27))","v":0}]
["Nb \"fragile\"",{"$f":"COUNTIF(EVA6_MATHS!J:J,CONCATENATE(Informations!$A$18,\" \",Informations!$A$28))","v":0},{"$f":"COUNTIF(EVA6_MATHS!K:K,CONCATENATE(Informations!$A$18,\" \",Informations!$A$28))","v":0},{"$f":"COUNTIF(EVA6_MATHS!L:L,CONCATENATE(Informations!$A$18,\" \",Informations!$A$28))","v":0},{"$f":"COUNTIF(EVA6_MATHS!M:M,CONCATENATE(Informations!$A$18,\" \",Informations!$A$28))","v":0},{"$f":"COUNTIF(EVA6_MATHS!N:N,CONCATENATE(Informations!$A$18,\" \",Informations!$A$28))","v":0}]
["Nb \"satisfaisant\"",{"$f":"COUNTIF(EVA6_MATHS!J:J,CONCATENATE(Informations!$A$18,\" \",Informations!$A$29))","v":0},{"$f":"COUNTIF(EVA6_MATHS!K:K,CONCATENATE(Informations!$A$18,\" \",Informations!$A$29))","v":0},{"$f":"COUNTIF(EVA6_MATHS!L:L,CONCATENATE(Informations!$A$18,\" \",Informations!$A$29))","v":0},{"$f":"COUNTIF(EVA6_MATHS!M:M,CONCATENATE(Informations!$A$18,\" \",Informations!$A$29))","v":0},{"$f":"COUNTIF(EVA6_MATHS!N:N,CONCATENATE(Informations!$A$18,\" \",Informations!$A$29))","v":0}]
["Total élèves évalués ",{"$f":"SUM(B169:B171)","v":0},{"$f":"SUM(C169:C171)","v":0},0,0,0]
[]
[{"$f":"CONCATENATE(\"Classe : \",Informations!$A$18)","v":"Classe : "},"Test spécifique en automatismes\nMobiliser directement des procédures et des connaissances","Test spécifique en résolution de problèmes\nRésoudre des problèmes en utilisant des nombres et des grandeurs","Espace et géométrie\nConnaître et utiliser des notions de géométrie","Grandeurs et mesures\nConnaître des grandeurs et utiliser des unités de mesure","Nombres et calculs\nConnaître les nombres et les utiliser dans des calculs"]
["Taux \"à besoins\"",{"$f":"B169/B$172","v":{"$error":"#DIV/0!"}},{"$f":"C169/C$172","v":{"$error":"#DIV/0!"}},{"$error":"#DIV/0!"},{"$error":"#DIV/0!"},{"$error":"#DIV/0!"}]
["Taux \"fragile\"",{"$f":"B170/B$172","v":{"$error":"#DIV/0!"}},{"$error":"#DIV/0!"},{"$error":"#DIV/0!"},{"$error":"#DIV/0!"},{"$error":"#DIV/0!"}]
["Taux \"satisfaisant\"",{"$f":"B171/B$172","v":{"$error":"#DIV/0!"}},{"$error":"#DIV/0!"},{"$error":"#DIV/0!"},{"$error":"#DIV/0!"},{"$error":"#DIV/0!"}]
["Total élèves évalués ",{"$error":"#DIV/0!"},{"$error":"#DIV/0!"},{"$error":"#DIV/0!"},{"$error":"#DIV/0!"},{"$error":"#DIV/0!"}]

{"sheet":"EVA6_FRANCAIS","index":4,"n_rows":0,"n_cols":0,"rows_kept":0}

{"sheet":"EVA6_MATHS","index":5,"n_rows":0,"n_cols":0,"rows_kept":0}